Workbook

Sheet Review Log
A1: 1 | B1: Updated Commerce Act Levies in Target Revenue to agree to compliance model
A2: 2 | B2: Allocator Data Tab - Assumed ID references were for 2023 not 2022.
A3: 3 | B3: Renamed connection charge to include new investment contracts
A4: 4 | B4: Deleted Te Anau from Allocator Data and Asset Mapping
A5: 5 | B5: Changed Cost Type for IRIS penalties to recoverable and passthrough

Sheet Model Guide
B2: =MID(CELL("filename",A1),FIND("]",CELL("filename",A1))+1,255) -> Model Guide
B5: Key
B7: Input cell | C7: 1000
B8: Source Reference | C8: xxx
B9: Calculation cell | C9: 1000
B10: Calculated percentage | C10: %
B11: Total | C11: 1000
B12: Check cell - no error | C12: 0
B13: Check cell - error | C13: =SUM(C11) -> 1000
B15: Pricing Process
B17: Aurora Energy’s pricing process is designed to support an efficient level of investment in our network for the long-term benefit of customers, and to comply with the Electricity Authority’s 2019 pricing principles. Prices are set to signal the underlying costs of supplying services, using a five step process as outlined below. This Cost of Supply Model (CoSM) is used for steps 2 and 3 of the pricing process.
B43: Model flow diagram
B64: Model overview
B66: The purpose of this model is to allocate the target revenue to: 1. Pricing areas based on the underlying costs of supply, 2. Customer load groups based on service characteristics. A detailed rationale for allocating costs is provided in our Pricing Methodology.
B68: The model has 3 key steps:
B70: 1. Target revenue is entered by component and then allocated to pricing areas based on a proxy allocator of the cost driver. For example, capital related costs are allocated to each pricing area based on the relative RAB value in each pricing area.
B71: 2. The RAB and RAB depreciation are allocated to customer load groups based on each load group's use of network assets, for example larger customers make proportionately more use of HV assets than smaller customers.
B72: 3. Each pricing area's target revenue is further allocated to customer load groups based on underlying service characteristics and use of the network.
B74: Input sheet guide
B76: Target revenue
B78: In the Target Revenue sheet: 1. Each component of target revenue is entered, with totals reconciling to the Annual Price-Setting Disclosure Statement. 2. For each component of target revenue a pricing area allocator is selected to determine what proportion of this target revenue is allocated to each pricing area. 3. For each component of target revenue a load group allocator is selected to determine how each component of target revenue is allocated to customer load groups within each pricing area. 4. Each component of target revenue is assigned as being either distribution or passthrough. This determines whether the component of target revenue is recovered through distribution tariffs, or passthrough tariffs. 5. Each component of target revenue is assigned a cost type. The cost type is used for reporting purposes only, and does not impact prices. 6. The model scales distribution revenue components to match the limit on forecast revenue from prices as disclosed in the annual price-setting statement. Passthrough and recoverable revenue components are not scaled.
B80: Allocator Data
B82: In the Allocator Data sheet the allocators are input at the pricing area and where possible, customer load group level.
B84: Asset Mapping
B86: In the Asset Mapping sheet: 1. Each asset category is identified as supporting either the LV, or HV network. 2. For each customer load group there is a flag to indicate whether they are supplied from the LV, or HV network. 3. The model determines each load group's share of network assets based on the relative CPD values of each customer load group.

Sheet Glossary
B2: =MID(CELL("filename",A1),FIND("]",CELL("filename",A1))+1,255) -> Glossary
B5: Abbreviation | C5: Definition
B6: ACOT | C6: Avoided Cost of Transmission
B7: Capex | C7: Capital Expenditure
B8: CoSM | C8: Cost of Supply Model
B9: CPD | C9: Control Period Demand
B10: CPP | C10: Customised Pricing-quality Path
B11: FENZ | C11: Fire Emergency New Zealand
B12: HV | C12: High Voltage
B13: ICP | C13: Installation Control Point, and is further defined in the Code
B14: IRIS | C14: Incremental Rolling Incentive Scheme
B15: km | C15: kilometre
B16: kVA | C16: kilovolt-ampere
B17: LV | C17: Low Voltage
B18: MWh | C18: Megawatt Hours
B19: Opex | C19: Operating Expenditure
B20: RAB | C20: Regulatory Asset Base
B21: SONS | C21: System Operations and Network Support

Sheet Check Summary
B2: =MID(CELL("filename",A1),FIND("]",CELL("filename",A1))+1,255) -> Check Summary
B3: Description
B5: This sheet provides a summary of the checks witin the Workbook.
B8: Model Status | C8: Flag | D8: Check
B10: Model Status | C10: Ok / Error | D10: =SUM(D12:D35) -> 0
B12: Target Revenue
B13: Scaled revenue is equal to limit on forecast revenue from prices | C13: Ok / Error | D13: ='Target Revenue'!J49 -> 0
B15: Asset Mapping
B16: Network types are fully allocated | C16: Ok / Error | D16: ='Asset Mapping'!B135 -> 0
B18: Pricing Area Allocations
B19: Target revenue is fully allocated to pricing areas | C19: Ok / Error | D19: ='Pricing Area Allocations'!B62 -> 0
B21: RAB Allocations
B22: RAB is fully allocated to pricing areas and load groups | C22: Ok / Error | D22: ='RAB Allocations'!C23 -> 0
B24: RAB - Depreciation Allocations
B25: RAB is fully allocated to pricing areas and load groups | C25: Ok / Error | D25: ='RAB - Depreciation Allocations'!C23 -> 0
B27: Price Allocations
B28: Pricing area load group totals match pricing area allocations | C28: Ok / Error | D28: =SUM('Load Group Allocations'!G320:I320) -> 0
B30: Revenue by Pricing Area and Load Group
B31: Distribution and passthrough by load group matches target revenue | C31: Ok / Error | D31: ='Rev - Pricing Area & Cust Group'!C46 -> 0
B33: Pricing Methodology Tables
B34: Table updates match model inputs | C34: Ok / Error | D34: ='Pricing Methodology Tables'!C47 -> 0

Sheet Name labels
B2: =MID(CELL("filename",A1),FIND("]",CELL("filename",A1))+1,255) -> Name labels
B4: Description
B6: This sheet records the name labels and look-up tables used in the model.
B8: Pricing Area Name | C8: Customer Load Groups | D8: Prior year | E8: This Year
B10: Dunedin | C10: Load group Streetlighting | D10: RY25 | E10: RY26
B11: Central Otago | C11: Load group 1 (incl residential)
B12: Queenstown | C12: Load group 2
B13: Te Anau | C13: Load group 3
C14: Load group 4
C15: Load group 5
B17: Target Revenue Components | C17: Distribution / Passthrough | D17: Cost type | E17: Tariff Types
B19: Service interruptions and emergencies | C19: Distribution | D19: Operational costs | E19: Daily Fixed Price
B20: Vegetation management | C20: Distribution | D20: Operational costs | E20: Capacity Price
B21: Routine and corrective maintenance and inspection | C21: Distribution | D21: Operational costs | E21: Distance Price
B22: System operations and network support | C22: Distribution | D22: Operational costs | E22: CPD Price
B23: Business support | C23: Distribution | D23: Operational costs
B24: Depreciation | C24: Distribution | D24: Capital related costs
B25: Asset revaluations and other regulatory revenue | C25: Distribution | D25: Capital related costs
B26: Tax | C26: Distribution | D26: Capital related costs
B27: Return on capital | C27: Distribution | D27: Capital related costs
B28: Local Authority rates | C28: Passthrough | D28: Passthrough and recoverable costs
B29: Commerce Act levies | C29: Passthrough | D29: Passthrough and recoverable costs
B30: Electricity Authority levies | C30: Passthrough | D30: Passthrough and recoverable costs
B31: Utilities Disputes levies | C31: Passthrough | D31: Passthrough and recoverable costs
B32: Opex Incentive Amount | C32: Passthrough | D32: Passthrough and recoverable costs
B33: Capex Incentive Amount | C33: Passthrough | D33: Passthrough and recoverable costs
B34: Transpower - Connection charge | C34: Passthrough | D34: Passthrough and recoverable costs
B35: Transpower - Interconnection costs | C35: Passthrough | D35: Passthrough and recoverable costs
B36: Transpower - New investment contract | C36: Passthrough | D36: Passthrough and recoverable costs
B37: Distributed Generation Allowance | C37: Passthrough | D37: Passthrough and recoverable costs
B38: CPP recoverable costs | C38: Passthrough | D38: Passthrough and recoverable costs
B39: Quality Incentive Adjustments | C39: Passthrough | D39: Passthrough and recoverable costs
B40: Capex Wash-up Adjustment | C40: Passthrough | D40: Passthrough and recoverable costs
B41: Fire and Emergency Management New Zealand (FENZ) levies | C41: Passthrough | D41: Passthrough and recoverable costs
B42: Opening wash-up Account Balance | C42: Passthrough | D42: Operational costs
B43: Transmission Costs | C43: Passthrough | D43: Passthrough and recoverable costs
B44: Transpower - Benefit-based Charge | C44: Passthrough | D44: Passthrough and recoverable costs
B45: Transpower - Residual Charge | C45: Passthrough | D45: Passthrough and recoverable costs
B46: Transpower - Transitional Price Cap | C46: Passthrough | D46: Passthrough and recoverable costs
B48: Pricing Area Allocators | C48: Load Group Allocators | D48: RAB Allocators
B50: ICP Count | C50: ICP Count | D50: CPD
B51: Total Circuit Length | C51: CPD
B52: Overhead Circuit Length | C52: Prior year distribution revenue
B53: CPD | C53: MWh
B54: Transpower connection charge and NIC | C54: Regulated Asset Base
B55: Transpower benefit based charge | C55: Regulated Asset Base (Depreciation)
B56: Transpower residual charge
B57: Transpower transitional price cap
B58: Distributed Generation Allowance
B59: Prior year distribution revenue
B60: MWh
B61: BBC
B62: Residual
B63: Cap
B64: Regulated Asset Base
B65: Regulated Asset Base (Depreciation)
B66: Overhead lines and underground cables
B68: Distribution / Passthrough | C68: Cost type
B70: Distribution | C70: Capital related costs
B71: Passthrough | C71: Operational costs
C72: Passthrough and recoverable costs
B74: Asset Categories | C74: Network Voltage | D74: Network Use Indicators
B76: 33KV Lines | C76: LV | D76: Yes
B77: 33KV Cables | C77: HV | D77: No
B78: Zone Subs | C78: Shared
B79: HV lines
B80: LV lines
B81: HV cables
B82: LV cables
B83: Dist Subs
B84: Other Network Assets
B85: Non-Network Assets
B87: Tariff Types
B89: Daily Fixed
B90: CPD
B91: Capacity
B92: Distance
B93: Shared

Sheet Inputs >
B2: This sheet has been deliberately left blank.

Sheet Target Revenue
B2: =MID(CELL("filename",A1),FIND("]",CELL("filename",A1))+1,255) -> Target Revenue
B8: Description
B10: In this sheet the target revenue is input at the cost category and cost item level consistent with the annual price-setting statement and the Commerce Commission's financial models.
B11: The Pricing Area and Load Group Allocators are selected to determine how costs are allocated.
B12: The target revenue is then scaled to match the total revenue allowable.
B13: More information about the target revenue components is provided in section 3.4 of the Pricing Methodology.
I14: UPDATED 23/09/2024
B15: ='Name labels'!B17 -> Target Revenue Components | D15: ='Name labels'!B48 -> Pricing Area Allocators | E15: ='Name labels'!C48 -> Load Group Allocators | F15: Tariff Type | G15: ='Name labels'!B68 -> Distribution / Passthrough | H15: ='Name labels'!C68 -> Cost type | I15: RY25 inputs ($000's) | J15: RY26 inputs ($000's) | K15: Scaled target revenue | L15: Source & comments
B17: ='Name labels'!B19 -> Service interruptions and emergencies | C17: =CONCATENATE("(50% allocated by ",D17,")") -> (50% allocated by Total Circuit Length) | D17: Total Circuit Length | E17: CPD | F17: Capacity | G17: =VLOOKUP(B17,'Name labels'!$B$19:$D$46,2,FALSE) -> Distribution | H17: =VLOOKUP(B17,'Name labels'!$B$19:$D$46,3,FALSE) -> Operational costs | I17: 2428.559865 | J17: 2428.639489 | K17: 2499.589294 | L17: Aurora CPP Expenditure Model With ComCom Adjustments - Final Decision - 31 March 2021 (published on Commerce Commission website). Sheet CPP model output
B18: ='Name labels'!B19 -> Service interruptions and emergencies | C18: =CONCATENATE("(50% allocated by ",D18,")") -> (50% allocated by ICP Count) | D18: ICP Count | E18: ICP Count | F18: Daily Fixed | G18: =VLOOKUP(B18,'Name labels'!$B$19:$D$46,2,FALSE) -> Distribution | H18: =VLOOKUP(B18,'Name labels'!$B$19:$D$46,3,FALSE) -> Operational costs | I18: 2428.559865 | J18: 2428.639489 | K18: 2499.589294
B19: ='Name labels'!B20 -> Vegetation management | D19: Overhead Circuit Length | E19: CPD | F19: Distance | G19: =VLOOKUP(B19,'Name labels'!$B$19:$D$46,2,FALSE) -> Distribution | H19: =VLOOKUP(B19,'Name labels'!$B$19:$D$46,3,FALSE) -> Operational costs | I19: 3937.880631 | J19: 3921.798362 | K19: 4036.369023
B20: ='Name labels'!B21 -> Routine and corrective maintenance and inspection | D20: Total Circuit Length | E20: CPD | F20: Capacity | G20: =VLOOKUP(B20,'Name labels'!$B$19:$D$46,2,FALSE) -> Distribution | H20: =VLOOKUP(B20,'Name labels'!$B$19:$D$46,3,FALSE) -> Operational costs | I20: 9569.861808 | J20: 9757.868652 | K20: 10042.93315
B21: ='Name labels'!B22 -> System operations and network support | D21: ICP Count | E21: ICP Count | F21: Daily Fixed | G21: =VLOOKUP(B21,'Name labels'!$B$19:$D$46,2,FALSE) -> Distribution | H21: =VLOOKUP(B21,'Name labels'!$B$19:$D$46,3,FALSE) -> Operational costs | I21: 15090.42708 | J21: 14505.97147 | K21: 14929.74612
B22: ='Name labels'!B23 -> Business support | D22: ICP Count | E22: ICP Count | F22: Daily Fixed | G22: =VLOOKUP(B22,'Name labels'!$B$19:$D$46,2,FALSE) -> Distribution | H22: =VLOOKUP(B22,'Name labels'!$B$19:$D$46,3,FALSE) -> Operational costs | I22: 15270.33301 | J22: 15402.91722 | K22: 15852.89507
B23: ='Name labels'!B24 -> Depreciation | D23: Regulated Asset Base (Depreciation) | E23: Regulated Asset Base (Depreciation) | F23: Capacity | G23: =VLOOKUP(B23,'Name labels'!$B$19:$D$46,2,FALSE) -> Distribution | H23: =VLOOKUP(B23,'Name labels'!$B$19:$D$46,3,FALSE) -> Capital related costs | I23: 23086.18775 | J23: 24551.68449 | K23: 25268.93266 | L23: Aurora CPP Financial Model With ComCom Adjustments - Final Decision - 31 March 2021 (published on Commerce Commission website). Sheet RABx Sheet TAXx
B24: ='Name labels'!B25 -> Asset revaluations and other regulatory revenue | D24: Regulated Asset Base | E24: Regulated Asset Base | F24: Capacity | G24: =VLOOKUP(B24,'Name labels'!$B$19:$D$46,2,FALSE) -> Distribution | H24: =VLOOKUP(B24,'Name labels'!$B$19:$D$46,3,FALSE) -> Capital related costs | I24: -14969.48938 | J24: -16167.27279 | K24: -16639.58038
B25: ='Name labels'!B26 -> Tax | D25: Regulated Asset Base | E25: Regulated Asset Base | F25: Capacity | G25: =VLOOKUP(B25,'Name labels'!$B$19:$D$46,2,FALSE) -> Distribution | H25: =VLOOKUP(B25,'Name labels'!$B$19:$D$46,3,FALSE) -> Capital related costs | I25: 6800.985937 | J25: 7219.466827 | K25: 7430.374938
B26: ='Name labels'!B27 -> Return on capital | D26: Regulated Asset Base | E26: Regulated Asset Base | F26: Capacity | G26: =VLOOKUP(B26,'Name labels'!$B$19:$D$46,2,FALSE) -> Distribution | H26: =VLOOKUP(B26,'Name labels'!$B$19:$D$46,3,FALSE) -> Capital related costs | I26: 30078.69343 | J26: 49796.2868 | K26: 51251.02592 | L26: Amount required to balance to Forecast net allowable revenue
B27: ='Name labels'!B28 -> Local Authority rates | D27: Regulated Asset Base | E27: Regulated Asset Base | F27: Capacity | G27: =VLOOKUP(B27,'Name labels'!$B$19:$D$46,2,FALSE) -> Passthrough | H27: =VLOOKUP(B27,'Name labels'!$B$19:$D$46,3,FALSE) -> Passthrough and recoverable costs | I27: 1641.464 | J27: 1833.362 | K27: 1833.362 | L27: Annual Price-Setting Compliance Statement - Table 6
B28: ='Name labels'!B29 -> Commerce Act levies | D28: Regulated Asset Base | E28: Regulated Asset Base | F28: Capacity | G28: =VLOOKUP(B28,'Name labels'!$B$19:$D$46,2,FALSE) -> Passthrough | H28: =VLOOKUP(B28,'Name labels'!$B$19:$D$46,3,FALSE) -> Passthrough and recoverable costs | I28: 450.29 | J28: 444.392 | K28: 444.392
B29: ='Name labels'!B30 -> Electricity Authority levies | C29: =CONCATENATE("(80% allocated by ",D29,")") -> (80% allocated by MWh) | D29: MWh | E29: MWh | F29: Capacity | G29: =VLOOKUP(B29,'Name labels'!$B$19:$D$46,2,FALSE) -> Passthrough | H29: =VLOOKUP(B29,'Name labels'!$B$19:$D$46,3,FALSE) -> Passthrough and recoverable costs | I29: 236.1104 | J29: 309.5464 | K29: 309.5464
B30: ='Name labels'!B30 -> Electricity Authority levies | C30: =CONCATENATE("(20% allocated by ",D30,")") -> (20% allocated by ICP Count) | D30: ICP Count | E30: ICP Count | F30: Daily Fixed | G30: =VLOOKUP(B30,'Name labels'!$B$19:$D$46,2,FALSE) -> Passthrough | H30: =VLOOKUP(B30,'Name labels'!$B$19:$D$46,3,FALSE) -> Passthrough and recoverable costs | I30: 59.0276 | J30: 77.3866 | K30: 77.3866
B31: ='Name labels'!B31 -> Utilities Disputes levies | D31: ICP Count | E31: ICP Count | F31: Daily Fixed | G31: =VLOOKUP(B31,'Name labels'!$B$19:$D$46,2,FALSE) -> Passthrough | H31: =VLOOKUP(B31,'Name labels'!$B$19:$D$46,3,FALSE) -> Passthrough and recoverable costs | I31: 67.267 | J31: 70.724 | K31: 70.724
B32: ='Name labels'!B32 -> Opex Incentive Amount | D32: Prior year distribution revenue | E32: Prior year distribution revenue | F32: Daily Fixed | G32: =VLOOKUP(B32,'Name labels'!$B$19:$D$46,2,FALSE) -> Passthrough | H32: =VLOOKUP(B32,'Name labels'!$B$19:$D$46,3,FALSE) -> Passthrough and recoverable costs | I32: 28434.58338 | J32: 29264.87322 | K32: 29264.87322
B33: ='Name labels'!B33 -> Capex Incentive Amount | D33: Regulated Asset Base | E33: Regulated Asset Base | F33: Capacity | G33: =VLOOKUP(B33,'Name labels'!$B$19:$D$46,2,FALSE) -> Passthrough | H33: =VLOOKUP(B33,'Name labels'!$B$19:$D$46,3,FALSE) -> Passthrough and recoverable costs | I33: -1581.40721 | J33: 0 | K33: 0
B34: ='Name labels'!B$43 -> Transmission Costs | C34: ='Name labels'!B34 -> Transpower - Connection charge | D34: Transpower connection charge and NIC | E34: MWh | F34: Capacity | G34: =VLOOKUP(B34,'Name labels'!$B$19:$D$46,2,FALSE) -> Passthrough | H34: =VLOOKUP(B34,'Name labels'!$B$19:$D$46,3,FALSE) -> Passthrough and recoverable costs | I34: 5381.74433 | J34: 6633.40825 | K34: 6633.40825
B35: ='Name labels'!B$43 -> Transmission Costs | C35: ='Name labels'!B44 -> Transpower - Benefit-based Charge | D35: Transpower benefit based charge | E35: MWh | F35: Capacity | G35: =VLOOKUP(B35,'Name labels'!$B$19:$D$46,2,FALSE) -> Passthrough | H35: =VLOOKUP(B35,'Name labels'!$B$19:$D$46,3,FALSE) -> Passthrough and recoverable costs | I35: 2713.779143 | J35: 2934.371895 | K35: 2934.371895
B36: ='Name labels'!B$43 -> Transmission Costs | C36: ='Name labels'!B45 -> Transpower - Residual Charge | D36: Transpower residual charge | E36: MWh | F36: Capacity | G36: =VLOOKUP(B36,'Name labels'!$B$19:$D$46,2,FALSE) -> Passthrough | H36: =VLOOKUP(B36,'Name labels'!$B$19:$D$46,3,FALSE) -> Passthrough and recoverable costs | I36: 17310.83239 | J36: 19938.97594 | K36: 19938.97594
B37: ='Name labels'!B$43 -> Transmission Costs | C37: ='Name labels'!B46 -> Transpower - Transitional Price Cap | D37: Transpower transitional price cap | E37: MWh | F37: Capacity | G37: =VLOOKUP(B37,'Name labels'!$B$19:$D$46,2,FALSE) -> Passthrough | H37: =VLOOKUP(B37,'Name labels'!$B$19:$D$46,3,FALSE) -> Passthrough and recoverable costs | I37: 16.74675 | J37: 12.78342 | K37: 12.78342
B38: ='Name labels'!B$43 -> Transmission Costs | C38: ='Name labels'!B35 -> Transpower - Interconnection costs | D38: Transpower connection charge and NIC | E38: MWh | F38: Capacity | G38: =VLOOKUP(B38,'Name labels'!$B$19:$D$46,2,FALSE) -> Passthrough | H38: =VLOOKUP(B38,'Name labels'!$B$19:$D$46,3,FALSE) -> Passthrough and recoverable costs | K38: 0
B39: ='Name labels'!B$43 -> Transmission Costs | C39: ='Name labels'!B36 -> Transpower - New investment contract | D39: Transpower connection charge and NIC | E39: MWh | F39: Capacity | G39: =VLOOKUP(B39,'Name labels'!$B$19:$D$46,2,FALSE) -> Passthrough | H39: =VLOOKUP(B39,'Name labels'!$B$19:$D$46,3,FALSE) -> Passthrough and recoverable costs | I39: 774.87108 | J39: 742.87272 | K39: 742.87272
B40: ='Name labels'!B$43 -> Transmission Costs | C40: ='Name labels'!B37 -> Distributed Generation Allowance | D40: Distributed Generation Allowance | E40: MWh | F40: Capacity | G40: =VLOOKUP(B40,'Name labels'!$B$19:$D$46,2,FALSE) -> Passthrough | H40: =VLOOKUP(B40,'Name labels'!$B$19:$D$46,3,FALSE) -> Passthrough and recoverable costs | K40: 0
B41: ='Name labels'!B38 -> CPP recoverable costs | D41: ICP Count | E41: ICP Count | F41: Daily Fixed | G41: =VLOOKUP(B41,'Name labels'!$B$19:$D$46,2,FALSE) -> Passthrough | H41: =VLOOKUP(B41,'Name labels'!$B$19:$D$46,3,FALSE) -> Passthrough and recoverable costs | I41: 0 | K41: 0
B42: ='Name labels'!B39 -> Quality Incentive Adjustments | D42: ICP Count | E42: ICP Count | F42: Daily Fixed | G42: =VLOOKUP(B42,'Name labels'!$B$19:$D$46,2,FALSE) -> Passthrough | H42: =VLOOKUP(B42,'Name labels'!$B$19:$D$46,3,FALSE) -> Passthrough and recoverable costs | I42: -581.664 | J42: -500.026 | K42: -500.026
B43: ='Name labels'!B40 -> Capex Wash-up Adjustment | D43: Regulated Asset Base | E43: Regulated Asset Base | F43: Capacity | G43: =VLOOKUP(B43,'Name labels'!$B$19:$D$46,2,FALSE) -> Passthrough | H43: =VLOOKUP(B43,'Name labels'!$B$19:$D$46,3,FALSE) -> Passthrough and recoverable costs | I43: -831.484198 | J43: -855.7635366 | K43: -855.7635366
B44: ='Name labels'!B41 -> Fire and Emergency Management New Zealand (FENZ) levies | D44: Regulated Asset Base | E44: Regulated Asset Base | F44: Capacity | G44: =VLOOKUP(B44,'Name labels'!$B$19:$D$46,2,FALSE) -> Passthrough | H44: =VLOOKUP(B44,'Name labels'!$B$19:$D$46,3,FALSE) -> Passthrough and recoverable costs | I44: 48.644 | J44: 79.18 | K44: 79.18
B45: ='Name labels'!B42 -> Opening wash-up Account Balance | I45: 25479.25428 | J45: 28075.41285 | L45: Annual Price-Setting Compliance Statement - Table 5
B46: Forecast Allowable Revenue | I46: 173342.0589 | J46: 202907.4998
B47: Forecast Revenue From Prices | I47: 158101.807 | J47: 178157.962
B48: Revenue Deferred to Future Periods | I48: 15240.25195 | J48: 24749.53775
J49: 0
B50: Forecast net allowable revenue | C50: 113846000 | D50: Reconsideration of customised price-quality path for Aurora Energy Limited following a change to weighted average cost of capital (Table 1) | J50: 0
B51: Limit on Forecast Revenue From Prices | C51: 178157962 | D51: Annual Price-Setting Compliance Statement (Table 10)
D53: Scaling
B54: ='Name labels'!C70 -> Capital related costs | C54: 65400.16532 | D54: =(C58-C56)/SUM(C54:C55) -> 1.029213807
B55: ='Name labels'!C71 -> Operational costs | C55: 48445.83468 | D55: =D54 -> 1.029213807
B56: ='Name labels'!C72 -> Passthrough and recoverable costs | C56: 60986.08691 | D56: 1
B57: Revenue deferrred & Wash-ups | C57: 3325.875093 | D57: 0
B58: Forecast Revenue From Prices | C58: 178157.962

Sheet Allocator Data
B2: =MID(CELL("filename",A1),FIND("]",CELL("filename",A1))+1,255) -> Allocator Data
B3: ='Name labels'!B8 -> Pricing Area Name | I3: Dunedin | J3: Central Otago | K3: Queenstown
I4: 1 | J4: 2 | K4: 3
B7: Description
B9: In this sheet allocation data is input by pricing area and customer load group (if applicable):
B10: The source of the information for each input is referenced in | C10: blue.
A12: 1 | B12: ='Name labels'!B50 -> ICP Count | C12: Units | D12: Total
B14: Allocation to pricing categories
I15: Information Disclosure 2024 - Schedule 8 (excluding Load group 0, Load Group 0A, and Distributed Generation)
B16: ='Name labels'!$C$10 -> Load group Streetlighting | C16: # | D16: 12 | I16: 2 | J16: 7 | K16: 3
B17: ='Name labels'!$C$11 -> Load group 1 (incl residential) | C17: # | D17: 86303.87115 | I17: 53023.64287 | J17: 20625.6776 | K17: 12654.55068
B18: ='Name labels'!$C$12 -> Load group 2 | C18: # | D18: 7277.978846 | I18: 3176.775956 | J18: 2184.945355 | K18: 1916.257534
B19: ='Name labels'!$C$13 -> Load group 3 | C19: # | D19: 436.3146119 | I19: 205.784153 | J19: 154.3825137 | K19: 76.14794521
B20: ='Name labels'!$C$14 -> Load group 4 | C20: # | D20: 154.5549891 | I20: 74.97540984 | J20: 44.45355191 | K20: 35.1260274
B21: ='Name labels'!$C$15 -> Load group 5 | C21: # | D21: 9.062856501 | I21: 6 | J21: 1.057377049 | K21: 2.005479452
B22: Total | D22: 94193.78245 | I22: 56489.17839 | J22: 23017.51639 | K22: 14687.08767
I23: 0.5997123899 | J23: 0.2443634367 | K23: 0.1559241734
B24: Allocation percentages
B26: ='Name labels'!$C$10 -> Load group Streetlighting | D26: 0.0001273969437 | I26: 3.540501131e-05 | J26: 0.0003041162166 | K26: 0.0002042610535
B27: ='Name labels'!$C$11 -> Load group 1 (incl residential) | D27: 0.9162374512 | I27: 0.9386513379 | J27: 0.8960861477 | K27: 0.861610618
B28: ='Name labels'!$C$12 -> Load group 2 | D28: 0.07726602177 | I28: 0.05623689434 | J28: 0.09492533068 | K28: 0.1304722609
B29: ='Name labels'!$C$13 -> Load group 3 | D29: 0.00463209567 | I29: 0.003642895133 | J29: 0.006707175137 | K29: 0.005184686502
B30: ='Name labels'!$C$14 -> Load group 4 | D30: 0.001640819438 | I30: 0.001327252617 | J30: 0.001931292289 | K30: 0.002391626453
B31: ='Name labels'!$C$15 -> Load group 5 | D31: 9.621501829e-05 | I31: 0.0001062150339 | J31: 4.593792967e-05 | K31: 0.0001365471152
B32: Total | D32: 1 | I32: 1 | J32: 1 | K32: 1
A36: 2 | B36: ='Name labels'!B51 -> Total Circuit Length | C36: Units | D36: Total
B38: Allocation to pricing categories
I39: Information Disclosure 2024 - Schedule 9c
B40: Total | C40: km | D40: 6311.790724 | I40: 2397.885827 | J40: 2879.415415 | K40: 1034.489482
I41: 0.3799057877 | J41: 0.4561962746 | K41: 0.1638979376
A44: 3 | B44: ='Name labels'!B52 -> Overhead Circuit Length | C44: Units | D44: Total
B46: Allocation to pricing categories
I47: Information Disclosure 2024 - Schedule 9c
B48: Total | C48: km | D48: 3830.351286 | I48: 1679.201532 | J48: 1755.991366 | K48: 395.158387
I49: 0.4383936112 | J49: 0.4584413375 | K49: 0.1031650513
A52: 4 | B52: ='Name labels'!B53 -> CPD | C52: Units | D52: Total
B54: Allocation to pricing categories
I55: Annual CPD assessments
B56: ='Name labels'!$C$10 -> Load group Streetlighting | C56: kW | D56: 2093.9 | I56: 1524.6 | J56: 320.9 | K56: 248.4
B57: ='Name labels'!$C$11 -> Load group 1 (incl residential) | C57: kW | D57: 216268.8 | I57: 121289.3 | J57: 51467.5 | K57: 43512
B58: ='Name labels'!$C$12 -> Load group 2 | C58: kW | D58: 53850.035 | I58: 25141.4 | J58: 13553.4 | K58: 15155.235
B59: ='Name labels'!$C$13 -> Load group 3 | C59: kW | D59: 24780.06 | I59: 14758.8 | J59: 5130.5 | K59: 4890.76
B60: ='Name labels'!$C$14 -> Load group 4 | C60: kW | D60: 29354.095 | I60: 15060.2 | J60: 6932.605 | K60: 7361.29
B61: ='Name labels'!$C$15 -> Load group 5 | C61: kW | D61: 6669.375 | I61: 6077.7 | J61: 77.475 | K61: 514.2
B62: Total | D62: 333016.265 | I62: 183852 | J62: 77482.38 | K62: 71681.885
I63: 0.5520811423 | J63: 0.2326684554 | K63: 0.2152504023
B64: Allocation percentages
B66: ='Name labels'!$C$10 -> Load group Streetlighting | D66: 0.006287680873 | I66: 0.008292539651 | J66: 0.004141586771 | K66: 0.003465310657
B67: ='Name labels'!$C$11 -> Load group 1 (incl residential) | D67: 0.6494241355 | I67: 0.6597116159 | J67: 0.6642477941 | K67: 0.6070152871
B68: ='Name labels'!$C$12 -> Load group 2 | D68: 0.1617039186 | I68: 0.1367480365 | J68: 0.1749223501 | K68: 0.2114234998
B69: ='Name labels'!$C$13 -> Load group 3 | D69: 0.07441096008 | I69: 0.08027543894 | J69: 0.06621505431 | K69: 0.06822867451
B70: ='Name labels'!$C$14 -> Load group 4 | D70: 0.08814613004 | I70: 0.08191480104 | J70: 0.08947330993 | K70: 0.1026938675
B71: ='Name labels'!$C$15 -> Load group 5 | D71: 0.02002717495 | I71: 0.03305756804 | J71: 0.0009999047525 | K71: 0.007173360466
B72: Total | D72: 1 | I72: 1 | J72: 1 | K72: 1
A76: 5 | B76: ='Name labels'!B54 -> Transpower connection charge and NIC | C76: Units | D76: Total
B78: Allocation to pricing categories
I79: Annual Price-Setting Compliance Statement - Table 6
B80: Total | C80: $ | D80: 7376280.97 | I80: 3246886.44 | J80: 1581434.242 | K80: 2547960.288
I81: 0.4401793334 | J81: 0.2143945233 | K81: 0.3454261433
A84: 6 | B84: ='Name labels'!B55 -> Transpower benefit based charge | C84: Units | D84: Total
B86: Allocation to pricing categories
I87: Annual Price-Setting Compliance Statement - Table 6
B88: Total | C88: $ | D88: 2934371.895 | I88: 1661808.718 | J88: 461504.7316 | K88: 811058.4456
I89: 0.5663251889 | J89: 0.1572754743 | K89: 0.2763993368
A92: 7 | B92: ='Name labels'!B56 -> Transpower residual charge | C92: Units | D92: Total
B94: Allocation to pricing categories
I95: Annual Price-Setting Compliance Statement - Table 6
B96: Total | C96: $ | D96: 19938975.94 | I96: 11952170.74 | J96: 4277417.33 | K96: 3709387.87
I97: 0.5994375426 | J97: 0.2145254271 | K97: 0.1860370302
A100: 8 | B100: ='Name labels'!B57 -> Transpower transitional price cap | C100: Units | D100: Total
B102: Allocation to pricing categories
I103: Annual Price-Setting Compliance Statement - Table 6
B104: Total | C104: $ | D104: 12783.42 | I104: 7608.559033 | J104: 2648.481171 | K104: 2526.379796
I105: 0.595189631 | J105: 0.2071809556 | K105: 0.1976294134
A108: 9 | B108: ='Name labels'!B59 -> Prior year distribution revenue | C108: Units | D108: Total
B110: Allocation to pricing categories
I111: Annual Compliance Statement 2023 - Table 20
B112: ='Name labels'!$C$10 -> Load group Streetlighting | C112: $ | D112: 572338.52 | I112: 434720.16 | J112: 86560.98 | K112: 51057.38
B113: ='Name labels'!$C$11 -> Load group 1 (incl residential) | C113: $ | D113: 64322790.79 | I113: 34438138.23 | J113: 19774969.47 | K113: 10109683.09
B114: ='Name labels'!$C$12 -> Load group 2 | C114: $ | D114: 15864522.1 | I114: 8002223.44 | J114: 4471907.76 | K114: 3390390.9
B115: ='Name labels'!$C$13 -> Load group 3 | C115: $ | D115: 8236819.26 | I115: 4084126.36 | J115: 2395733.45 | K115: 1756959.45
B116: ='Name labels'!$C$14 -> Load group 4 | C116: $ | D116: 6694989.47 | I116: 2956086.16 | J116: 2640569.54 | K116: 1098333.77
B117: ='Name labels'!$C$15 -> Load group 5 | C117: $ | D117: 956999.09 | I117: 778208.56 | J117: 139812.93 | K117: 38977.6
B118: Total | D118: 96648459.23 | I118: 50693502.91 | J118: 29509554.13 | K118: 16445402.19
I119: 0.5245143411 | J119: 0.3053287591 | K119: 0.1701568998
B120: Allocation percentages
B122: ='Name labels'!$C$10 -> Load group Streetlighting | D122: 0.005921858709 | I122: 0.008575461056 | J122: 0.002933320497 | K122: 0.003104659856
B123: ='Name labels'!$C$11 -> Load group 1 (incl residential) | D123: 0.6655335357 | I123: 0.6793402754 | J123: 0.6701209169 | K123: 0.6147422224
B124: ='Name labels'!$C$12 -> Load group 2 | D124: 0.1641466633 | I124: 0.1578550106 | J124: 0.1515410142 | K124: 0.2061604125
B125: ='Name labels'!$C$13 -> Load group 3 | D125: 0.08522452738 | I125: 0.08056508479 | J125: 0.0811850101 | K125: 0.1068359065
B126: ='Name labels'!$C$14 -> Load group 4 | D126: 0.06927155925 | I126: 0.05831291961 | J126: 0.08948185148 | K126: 0.06678667735
B127: ='Name labels'!$C$15 -> Load group 5 | D127: 0.009901855628 | I127: 0.01535124849 | J127: 0.004737886902 | K127: 0.002370121421
B128: Total | D128: 1 | I128: 1 | J128: 1 | K128: 1
A132: 10 | B132: ='Name labels'!B60 -> MWh | C132: Units | D132: Total
B134: Allocation to pricing categories
I135: Information Disclosure 2024 - Schedule 8 (excluding Load group 0, Load Group 0A, and Distributed Generation)
B136: ='Name labels'!$C$10 -> Load group Streetlighting | C136: MWh | D136: 6098.715 | I136: 4434.482 | J136: 936.161 | K136: 728.072
B137: ='Name labels'!$C$11 -> Load group 1 (incl residential) | C137: MWh | D137: 723322.2126 | I137: 449809.1841 | J137: 149245.3048 | K137: 124267.7237
B138: ='Name labels'!$C$12 -> Load group 2 | C138: MWh | D138: 284896.6356 | I138: 130259.1216 | J138: 83475.00761 | K138: 71162.50637
B139: ='Name labels'!$C$13 -> Load group 3 | C139: MWh | D139: 150060.8961 | I139: 83073.19866 | J139: 42705.15889 | K139: 24282.53854
B140: ='Name labels'!$C$14 -> Load group 4 | C140: MWh | D140: 193781.4862 | I140: 98511.50356 | J140: 44157.7824 | K140: 51112.20019
B141: ='Name labels'!$C$15 -> Load group 5 | C141: MWh | D141: 63212.292 | I141: 46222.53314 | J141: 7993.45076 | K141: 8996.3081
B142: Total | D142: 1421372.237 | I142: 812310.023 | J142: 328512.8654 | K142: 280549.3489
I143: 0.5714970376 | J143: 0.2311237386 | K143: 0.1973792238
B144: Allocation percentages
B146: ='Name labels'!$C$10 -> Load group Streetlighting | D146: 0.004290723316 | I146: 0.005459100435 | J146: 0.002849693569 | K146: 0.002595165531
B147: ='Name labels'!$C$11 -> Load group 1 (incl residential) | D147: 0.5088900666 | I147: 0.5537407779 | J147: 0.4543058141 | K147: 0.4429442599
B148: ='Name labels'!$C$12 -> Load group 2 | D148: 0.2004377376 | I148: 0.1603564131 | J148: 0.2540996606 | K148: 0.253654149
B149: ='Name labels'!$C$13 -> Load group 3 | D149: 0.1055746638 | I149: 0.1022678489 | J149: 0.1299953925 | K149: 0.08655353731
B150: ='Name labels'!$C$14 -> Load group 4 | D150: 0.1363340869 | I150: 0.1212732833 | J150: 0.1344172087 | K150: 0.1821861301
B151: ='Name labels'!$C$15 -> Load group 5 | D151: 0.04447272174 | I151: 0.05690257639 | J151: 0.02433223049 | K151: 0.03206675807
B152: Total | D152: 1 | I152: 1 | J152: 1 | K152: 1
A156: 11 | B156: ='Name labels'!B64 -> Regulated Asset Base | D156: Total
B158: Asset categories
I159: RAB model for Information Disclosure 2023 - Schedule 4
B160: ='Name labels'!$B$76 -> 33KV Lines | C160: $ | D160: 44500395.77 | I160: 14040839.1 | J160: 22591386.47 | K160: 7868170.197
B161: ='Name labels'!$B$77 -> 33KV Cables | C161: $ | D161: 38390088.07 | I161: 23491429.61 | J161: 2978846.737 | K161: 11919811.73
B162: ='Name labels'!$B$78 -> Zone Subs | C162: $ | D162: 136407932.8 | I162: 64874598.69 | J162: 52032450.08 | K162: 19500884.06
B163: ='Name labels'!$B$79 -> HV lines | C163: $ | D163: 159318956.1 | I163: 62471032.47 | J163: 71014599.77 | K163: 25833323.83
B164: ='Name labels'!$B$80 -> LV lines | C164: $ | D164: 103282383.3 | I164: 86698079.46 | J164: 11733943.75 | K164: 4850360.089
B165: ='Name labels'!$B$81 -> HV cables | C165: $ | D165: 122151714.8 | I165: 44094964.4 | J165: 45908436.77 | K165: 32148313.66
B166: ='Name labels'!$B$82 -> LV cables | C166: $ | D166: 65918004.96 | I166: 21412808.42 | J166: 24638468.77 | K166: 19866727.77
B167: ='Name labels'!$B$83 -> Dist Subs | C167: $ | D167: 132773957.1 | I167: 49572403.73 | J167: 51652849.42 | K167: 31548703.9
B168: ='Name labels'!$B$84 -> Other Network Assets | C168: $ | D168: 21256201.59 | I168: 15469611.63 | J168: 2655159.482 | K168: 3131430.485
B169: ='Name labels'!$B$85 -> Non-Network Assets | C169: $ | D169: 6157411.728 | I169: 4892760.246 | J169: 847821.3504 | K169: 416830.1319
B170: Total | D170: 830157046.2 | I170: 387018527.8 | J170: 286053962.6 | K170: 157084555.9
B171: Total Check | I171: 0.4661991722 | J171: 0.34457813 | K171: 0.1892226978
A174: 12 | B174: ='Name labels'!B65 -> Regulated Asset Base (Depreciation) | D174: Total
B176: Asset categories
I177: RAB model for Information Disclosure 2023- Schedule 4
B178: ='Name labels'!$B$76 -> 33KV Lines | C178: $ | D178: 1327440.715 | I178: 407479.7288 | J178: 690829.8701 | K178: 229131.1163
B179: ='Name labels'!$B$77 -> 33KV Cables | C179: $ | D179: 840254.8832 | I179: 636949.3294 | J179: 87242.53801 | K179: 116063.0158
B180: ='Name labels'!$B$78 -> Zone Subs | C180: $ | D180: 4616168.988 | I180: 2336431.546 | J180: 1444018.453 | K180: 835718.9892
B181: ='Name labels'!$B$79 -> HV lines | C181: $ | D181: 4098168.414 | I181: 1519416.29 | J181: 1888068.239 | K181: 690683.8848
B182: ='Name labels'!$B$80 -> LV lines | C182: $ | D182: 2550315.788 | I182: 2108664.913 | J182: 311970.8705 | K182: 129680.0044
B183: ='Name labels'!$B$81 -> HV cables | C183: $ | D183: 3771408.766 | I183: 1287167.308 | J183: 1423527.386 | K183: 1060714.072
B184: ='Name labels'!$B$82 -> LV cables | C184: $ | D184: 2044536.504 | I184: 625057.0183 | J184: 763988.8768 | K184: 655490.6093
B185: ='Name labels'!$B$83 -> Dist Subs | C185: $ | D185: 4869977.483 | I185: 1916977.194 | J185: 1813015.714 | K185: 1139984.574
B186: ='Name labels'!$B$84 -> Other Network Assets | C186: $ | D186: 2887313.551 | I186: 1853705.778 | J186: 702174.5105 | K186: 331433.2624
B187: ='Name labels'!$B$85 -> Non-Network Assets | C187: $ | D187: 2074717.989 | I187: 1595735.128 | J187: 341313.0141 | K187: 137669.8469
B188: Total | D188: 29080303.08 | I188: 14287584.23 | J188: 9466149.472 | K188: 5326569.375
I189: 0.4913148324 | J189: 0.3255175658 | K189: 0.1831676018
A192: 13 | B192: ='Name labels'!B66 -> Overhead lines and underground cables
B193: Note: This input is used to allocate 'RAB' and 'RAB - Depreciation' values for lines and cables between HV and LV
B195: Overhead Circuit Length (km) | I195: Information Disclosure 2024 - Schedule 9c
B196: Distribution lines(HV) | C196: km | F196: 2004 ODV RC ($000/km Medium): | G196: 28 | I196: 872.2180898 | J196: 1581.753009 | K196: 351.1986332
B197: LV lines | C197: km | F197: 2004 ODV RC ($000/km Medium): | G197: 42 | I197: 806.9834424 | J197: 174.2383574 | K197: 43.95975382
B198: Total | I198: 1679.201532 | J198: 1755.991366 | K198: 395.158387
B200: Distribution lines(HV) | I200: 0.4187933525 | J200: 0.8581975797 | K200: 0.8419238022
B201: LV lines | I201: 0.5812066475 | J201: 0.1418024203 | K201: 0.1580761978
I202: 1 | J202: 1 | K202: 1
B203: Underground Circuit Length (km)
B204: Distribution cables(HV) | C204: km | F204: 2004 ODV RC ($000/km Medium): | G204: 103 | I204: 400.620401 | J204: 598.3805063 | K204: 318.0223812
B205: LV cables | C205: km | F205: 2004 ODV RC ($000/km Medium): | G205: 63 | I205: 318.0638939 | J205: 525.0435421 | K205: 321.3087141
B206: Total | I206: 718.6842949 | J206: 1123.424048 | K206: 639.3310954
B208: Distribution cables(HV) | I208: 0.6731256842 | J208: 0.6507505385 | K208: 0.6180580228
B209: LV cables | I209: 0.3268743158 | J209: 0.3492494615 | K209: 0.3819419772
I210: 1 | J210: 1 | K210: 1

Sheet Asset Mapping
B2: Asset Mapping
B4: Description
B6: In this sheet asset categories are firstly mapped to a network type (HV, LV, or Shared).
B7: Each Load Group is then mapped to the network types used by that load group.
B10: Asset Categories | C10: Network Voltage
B12: 33KV Lines | C12: HV | D12: HV - CPD
B13: 33KV Cables | C13: HV | D13: HV - CPD
B14: Zone Subs | C14: LV | D14: LV - CPD
B15: HV lines | C15: HV | D15: HV - CPD
B16: LV lines | C16: LV | D16: LV - CPD
B17: HV cables | C17: HV | D17: HV - CPD
B18: LV cables | C18: LV | D18: LV - CPD
B19: Dist Subs | C19: LV | D19: LV - CPD
B20: Other Network Assets | C20: Shared | D20: Shared - CPD
B21: Non-Network Assets | C21: Shared | D21: Shared - CPD
B23: Network Voltage | C23: RAB Allocators
B25: LV | C25: CPD | D25: LV - CPD
B26: HV | C26: CPD | D26: HV - CPD
B27: Shared | C27: CPD | D27: Shared - CPD
B29: Load Groups | C29: LV | D29: HV | E29: Shared
B31: Load group Streetlighting | C31: Yes | D31: No | E31: Yes
B32: Load group 1 (incl residential) | C32: Yes | D32: No | E32: Yes
B33: Load group 2 | C33: Yes | D33: No | E33: Yes
B34: Load group 3 | C34: No | D34: Yes | E34: Yes
B35: Load group 4 | C35: No | D35: Yes | E35: Yes
B36: Load group 5 | C36: No | D36: Yes | E36: Yes
A38: 1 | B38: LV - CPD | C38: Units | D38: Total | G38: Dunedin | H38: Central Otago | I38: Queenstown
B40: Allocation to pricing categories
B42: Load group Streetlighting | C42: kW | D42: 2093.9 | G42: 1524.6 | H42: 320.9 | I42: 248.4
B43: Load group 1 (incl residential) | C43: kW | D43: 216268.8 | G43: 121289.3 | H43: 51467.5 | I43: 43512
B44: Load group 2 | C44: kW | D44: 53850.035 | G44: 25141.4 | H44: 13553.4 | I44: 15155.235
B45: Load group 3 | C45: kW | D45: 0 | G45: 0 | H45: 0 | I45: 0
B46: Load group 4 | C46: kW | D46: 0 | G46: 0 | H46: 0 | I46: 0
B47: Load group 5 | C47: kW | D47: 0 | G47: 0 | H47: 0 | I47: 0
B48: Total | D48: 272212.735 | G48: 147955.3 | H48: 65341.8 | I48: 58915.635
G49: 0.5435282078 | H49: 0.2400394677 | I49: 0.2164323245
B50: Allocation percentages
B52: Load group Streetlighting | D52: 0.00769214563 | G52: 0.01030446358 | H52: 0.004911098256 | I52: 0.004216198298
B53: Load group 1 (incl residential) | D53: 0.7944845049 | G53: 0.81976989 | H53: 0.7876657821 | I53: 0.7385475859
B54: Load group 2 | D54: 0.1978233494 | G54: 0.1699256465 | H54: 0.2074231197 | I54: 0.2572362158
B55: Load group 3 | D55: 0 | G55: 0 | H55: 0 | I55: 0
B56: Load group 4 | D56: 0 | G56: 0 | H56: 0 | I56: 0
B57: Load group 5 | D57: 0 | G57: 0 | H57: 0 | I57: 0
B58: Total | D58: 1 | G58: 1 | H58: 1 | I58: 1
A62: 2 | B62: HV - CPD | C62: Units | D62: Total | G62: Dunedin | H62: Central Otago | I62: Queenstown
B64: Allocation to pricing categories
B66: Load group Streetlighting | C66: kW | D66: 0 | G66: 0 | H66: 0 | I66: 0
B67: Load group 1 (incl residential) | C67: kW | D67: 0 | G67: 0 | H67: 0 | I67: 0
B68: Load group 2 | C68: kW | D68: 0 | G68: 0 | H68: 0 | I68: 0
B69: Load group 3 | C69: kW | D69: 24780.06 | G69: 14758.8 | H69: 5130.5 | I69: 4890.76
B70: Load group 4 | C70: kW | D70: 29354.095 | G70: 15060.2 | H70: 6932.605 | I70: 7361.29
B71: Load group 5 | C71: kW | D71: 6669.375 | G71: 6077.7 | H71: 77.475 | I71: 514.2
B72: Total | D72: 60803.53 | G72: 35896.7 | H72: 12140.58 | I72: 12766.25
G73: 0.5903719735 | H73: 0.1996689995 | I73: 0.209959027
B74: Allocation percentages
B76: Load group Streetlighting | D76: 0 | G76: 0 | H76: 0 | I76: 0
B77: Load group 1 (incl residential) | D77: 0 | G77: 0 | H77: 0 | I77: 0
B78: Load group 2 | D78: 0 | G78: 0 | H78: 0 | I78: 0
B79: Load group 3 | D79: 0.4075431147 | G79: 0.4111464285 | H79: 0.4225910129 | I79: 0.3831007539
B80: Load group 4 | D80: 0.4827695859 | G80: 0.4195427435 | H80: 0.5710274962 | I80: 0.5766211691
B81: Load group 5 | D81: 0.1096872994 | G81: 0.169310828 | H81: 0.006381490835 | I81: 0.04027807696
B82: Total | D82: 1 | G82: 1 | H82: 1 | I82: 1
A86: 3 | B86: Shared - CPD | C86: Units | D86: Total | G86: Dunedin | H86: Central Otago | I86: Queenstown
B88: Allocation to pricing categories
B90: Load group Streetlighting | C90: kW | D90: 2093.9 | G90: 1524.6 | H90: 320.9 | I90: 248.4
B91: Load group 1 (incl residential) | C91: kW | D91: 216268.8 | G91: 121289.3 | H91: 51467.5 | I91: 43512
B92: Load group 2 | C92: kW | D92: 53850.035 | G92: 25141.4 | H92: 13553.4 | I92: 15155.235
B93: Load group 3 | C93: kW | D93: 24780.06 | G93: 14758.8 | H93: 5130.5 | I93: 4890.76
B94: Load group 4 | C94: kW | D94: 29354.095 | G94: 15060.2 | H94: 6932.605 | I94: 7361.29
B95: Load group 5 | C95: kW | D95: 6669.375 | G95: 6077.7 | H95: 77.475 | I95: 514.2
B96: Total | D96: 333016.265 | G96: 183852 | H96: 77482.38 | I96: 71681.885
G97: 0.5520811423 | H97: 0.2326684554 | I97: 0.2152504023
B98: Allocation percentages
B100: Load group Streetlighting | D100: 0.006287680873 | G100: 0.008292539651 | H100: 0.004141586771 | I100: 0.003465310657
B101: Load group 1 (incl residential) | D101: 0.6494241355 | G101: 0.6597116159 | H101: 0.6642477941 | I101: 0.6070152871
B102: Load group 2 | D102: 0.1617039186 | G102: 0.1367480365 | H102: 0.1749223501 | I102: 0.2114234998
B103: Load group 3 | D103: 0.07441096008 | G103: 0.08027543894 | H103: 0.06621505431 | I103: 0.06822867451
B104: Load group 4 | D104: 0.08814613004 | G104: 0.08191480104 | H104: 0.08947330993 | I104: 0.1026938675
B105: Load group 5 | D105: 0.02002717495 | G105: 0.03305756804 | H105: 0.0009999047525 | I105: 0.007173360466
B106: Total | D106: 1 | G106: 1 | H106: 1 | I106: 1
A108: 4 | B108: Load Group Summary | G108: Dunedin | H108: Central Otago | I108: Queenstown
B109: Load group Streetlighting
B110: LV - CPD | G110: 0.01030446358 | H110: 0.004911098256 | I110: 0.004216198298
B111: HV - CPD | G111: 0 | H111: 0 | I111: 0
B112: Shared - CPD | G112: 0.008292539651 | H112: 0.004141586771 | I112: 0.003465310657
B113: Load group 1 (incl residential)
B114: LV - CPD | G114: 0.81976989 | H114: 0.7876657821 | I114: 0.7385475859
B115: HV - CPD | G115: 0 | H115: 0 | I115: 0
B116: Shared - CPD | G116: 0.6597116159 | H116: 0.6642477941 | I116: 0.6070152871
B117: Load group 2
B118: LV - CPD | G118: 0.1699256465 | H118: 0.2074231197 | I118: 0.2572362158
B119: HV - CPD | G119: 0 | H119: 0 | I119: 0
B120: Shared - CPD | G120: 0.1367480365 | H120: 0.1749223501 | I120: 0.2114234998
B121: Load group 3
B122: LV - CPD | G122: 0 | H122: 0 | I122: 0
B123: HV - CPD | G123: 0.4111464285 | H123: 0.4225910129 | I123: 0.3831007539
B124: Shared - CPD | G124: 0.08027543894 | H124: 0.06621505431 | I124: 0.06822867451
B125: Load group 4
B126: LV - CPD | G126: 0 | H126: 0 | I126: 0
B127: HV - CPD | G127: 0.4195427435 | H127: 0.5710274962 | I127: 0.5766211691
B128: Shared - CPD | G128: 0.08191480104 | H128: 0.08947330993 | I128: 0.1026938675
B129: Load group 5
B130: LV - CPD | G130: 0 | H130: 0 | I130: 0
B131: HV - CPD | G131: 0.169310828 | H131: 0.006381490835 | I131: 0.04027807696
B132: Shared - CPD | G132: 0.03305756804 | H132: 0.0009999047525 | I132: 0.007173360466
B134: Error check | G134: 0 | H134: 0 | I134: 0
B135: 0 | G135: 0 | H135: 0 | I135: 0
G136: 0 | H136: 0 | I136: 0

Sheet Calculations >
B2: This sheet has been deliberately left blank.

Sheet Pricing Area Allocations
B2: Pricing Area Allocations
B3: Pricing Area Name | H3: Dunedin | I3: Central Otago | J3: Queenstown
H4: 1 | I4: 2 | J4: 3
B7: Description
B9: This sheet allocates each component of target revenue to pricing areas based on the selected allocator, and calculated allocation percentages.
B10: More information about pricing area allocations are provided in section 3.5 of the Pricing Methodology.
B12: Allocator percentages | H12: Dunedin | I12: Central Otago | J12: Queenstown | L12: check
A14: 1 | B14: ICP Count | H14: 0.5997123899 | I14: 0.2443634367 | J14: 0.1559241734 | L14: 0
A15: 2 | B15: Total Circuit Length | H15: 0.3799057877 | I15: 0.4561962746 | J15: 0.1638979376 | L15: 0
A16: 3 | B16: Overhead Circuit Length | H16: 0.4383936112 | I16: 0.4584413375 | J16: 0.1031650513 | L16: 0
A17: 4 | B17: CPD | H17: 0.5520811423 | I17: 0.2326684554 | J17: 0.2152504023 | L17: 0
A18: 5 | B18: Transpower connection charge and NIC | H18: 0.4401793334 | I18: 0.2143945233 | J18: 0.3454261433 | L18: 0
A19: 6 | B19: Transpower benefit based charge | H19: 0.5663251889 | I19: 0.1572754743 | J19: 0.2763993368 | L19: 0
A20: 7 | B20: Transpower residual charge | H20: 0.5994375426 | I20: 0.2145254271 | J20: 0.1860370302 | L20: 0
A21: 8 | B21: Transpower transitional price cap | H21: 0.595189631 | I21: 0.2071809556 | J21: 0.1976294134 | L21: 0
A22: 9 | B22: Prior year distribution revenue | H22: 0.5245143411 | I22: 0.3053287591 | J22: 0.1701568998 | L22: 0
A23: 10 | B23: MWh | H23: 0.5714970376 | I23: 0.2311237386 | J23: 0.1973792238 | L23: 0
A24: 11 | B24: Regulated Asset Base | H24: 0.4661991722 | I24: 0.34457813 | J24: 0.1892226978 | L24: 0
A25: 12 | B25: Regulated Asset Base (Depreciation) | H25: 0.4913148324 | I25: 0.3255175658 | J25: 0.1831676018 | L25: 0
B27: Target Revenue Components | C27: Cost type | D27: Pricing Area Allocators | E27: Scaled target revenue | H27: Dunedin | I27: Central Otago | J27: Queenstown
B31: Service interruptions and emergencies | C31: Operational costs | D31: Total Circuit Length | E31: 2499.589294 | H31: 949.6084399 | I31: 1140.303324 | J31: 409.6775303
B32: Service interruptions and emergencies | C32: Operational costs | D32: ICP Count | E32: 2499.589294 | H32: 1499.03467 | I32: 610.8082303 | J32: 389.7463946
B33: Vegetation management | C33: Operational costs | D33: Overhead Circuit Length | E33: 4036.369023 | H33: 1769.518392 | I33: 1850.438413 | J33: 416.4122175
B34: Routine and corrective maintenance and inspection | C34: Operational costs | D34: Total Circuit Length | E34: 10042.93315 | H34: 3815.368428 | I34: 4581.548687 | J34: 1646.01603
B35: System operations and network support | C35: Operational costs | D35: ICP Count | E35: 14929.74612 | H35: 8953.553728 | I35: 3648.284071 | J35: 2327.908324
B36: Business support | C36: Operational costs | D36: ICP Count | E36: 15852.89507 | H36: 9507.17759 | I36: 3873.867921 | J36: 2471.849561
B37: Depreciation | C37: Capital related costs | D37: Regulated Asset Base (Depreciation) | E37: 25268.93266 | H37: 12415.00142 | I37: 8225.481451 | J37: 4628.449796
B38: Asset revaluations and other regulatory revenue | C38: Capital related costs | D38: Regulated Asset Base | E38: -16639.58038 | H38: -7757.3586 | I38: -5733.635492 | J38: -3148.586289
B39: Tax | C39: Capital related costs | D39: Regulated Asset Base | E39: 7430.374938 | H39: 3464.034646 | I39: 2560.344702 | J39: 1405.995591
B40: Return on capital | C40: Capital related costs | D40: Regulated Asset Base | E40: 51251.02592 | H40: 23893.18586 | I40: 17659.98267 | J40: 9697.857388
B41: Local Authority rates | C41: Passthrough and recoverable costs | D41: Regulated Asset Base | E41: 1833.362 | H41: 854.7118468 | I41: 631.7364496 | J41: 346.9137036
B42: Commerce Act levies | C42: Passthrough and recoverable costs | D42: Regulated Asset Base | E42: 444.392 | H42: 207.1751825 | I42: 153.1277643 | J42: 84.08905311
B43: Electricity Authority levies | C43: Passthrough and recoverable costs | D43: MWh | E43: 309.5464 | H43: 176.9048506 | I43: 71.54352123 | J43: 61.09802816
B44: Electricity Authority levies | C44: Passthrough and recoverable costs | D44: ICP Count | E44: 77.3866 | H44: 46.40970283 | I44: 18.91045553 | J44: 12.06644164
B45: Utilities Disputes levies | C45: Passthrough and recoverable costs | D45: ICP Count | E45: 70.724 | H45: 42.41405906 | I45: 17.2823597 | J45: 11.02758124
B46: Opex Incentive Amount | C46: Passthrough and recoverable costs | D46: Prior year distribution revenue | E46: 29264.87322 | H46: 15349.84569 | I46: 8935.407426 | J46: 4979.620099
B47: Capex Incentive Amount | C47: Passthrough and recoverable costs | D47: Regulated Asset Base | E47: 0 | H47: 0 | I47: 0 | J47: 0
B48: Transpower - Connection charge | C48: Passthrough and recoverable costs | D48: Transpower connection charge and NIC | E48: 6633.40825 | H48: 2919.889221 | I48: 1422.1664 | J48: 2291.352629
B49: Transpower - Benefit-based Charge | C49: Passthrough and recoverable costs | D49: Transpower benefit based charge | E49: 2934.371895 | H49: 1661.808718 | I49: 461.5047316 | J49: 811.0584456
B50: Transpower - Residual Charge | C50: Passthrough and recoverable costs | D50: Transpower residual charge | E50: 19938.97594 | H50: 11952.17074 | I50: 4277.41733 | J50: 3709.38787
B51: Transpower - Transitional Price Cap | C51: Passthrough and recoverable costs | D51: Transpower transitional price cap | E51: 12.78342 | H51: 7.608559033 | I51: 2.648481171 | J51: 2.526379796
B52: Transpower - Interconnection costs | C52: Passthrough and recoverable costs | D52: Transpower connection charge and NIC | E52: 0 | H52: 0 | I52: 0 | J52: 0
B53: Transpower - New investment contract | C53: Passthrough and recoverable costs | D53: Transpower connection charge and NIC | E53: 742.87272 | H53: 326.9972187 | I53: 159.2678427 | J53: 256.6076587
B54: Distributed Generation Allowance | C54: Passthrough and recoverable costs | D54: Distributed Generation Allowance | E54: 0 | H54: 0 | I54: 0 | J54: 0
B55: CPP recoverable costs | C55: Passthrough and recoverable costs | D55: ICP Count | E55: 0 | H55: 0 | I55: 0 | J55: 0
B56: Quality Incentive Adjustments | C56: Passthrough and recoverable costs | D56: ICP Count | E56: -500.026 | H56: -299.8717875 | I56: -122.1880718 | J56: -77.96614074
B57: Capex Wash-up Adjustment | C57: Passthrough and recoverable costs | D57: Regulated Asset Base | E57: -855.7635366 | H57: -398.9562524 | I57: -294.8773992 | J57: -161.929885
B58: Fire and Emergency Management New Zealand (FENZ) levies | C58: Passthrough and recoverable costs | D58: Regulated Asset Base | E58: 79.18 | H58: 36.91365046 | I58: 27.28369633 | J58: 14.98265321
B59: Total | E59: 178157.962 | H59: 91393.14597 | I59: 54178.65497 | J59: 32586.16106
E60: 0 | H60: 0.5129893997 | I60: 0.3041045955 | J60: 0.1829060048
B61: Error check
B62: 0

Sheet RAB Allocations
B2: RAB Allocations
B3: Pricing Area Name | I3: Dunedin | J3: Central Otago | K3: Queenstown
I4: 1 | J4: 2 | K4: 3
B7: Description
B9: In this sheet the RAB is allocated to load groups based on the inputs from the Asset Mapping worksheet.
B10: More information about pricing area allocations are provided in section 3.5 of the Pricing Methodology.
B12: RAB Allocator Summary | C12: Units | F12: Total
B14: Load Group Summary
B16: Load group Streetlighting | C16: $ | F16: 3496283.69 | I16: 2462195.451 | J16: 702345.0843 | K16: 331743.155
B17: Load group 1 (incl residential) | C17: $ | F17: 366636209 | I17: 195879550.5 | J17: 112645514.6 | K17: 58111143.96
B18: Load group 2 | C18: $ | F18: 90506883.61 | I18: 40602807.76 | J18: 29663957.2 | K18: 20240118.65
B19: Load group 3 | C19: $ | F19: 151364103.8 | I19: 60880085.59 | J19: 60448325.27 | K19: 30035692.95
B20: Load group 4 | C20: $ | F20: 189012353.1 | I20: 62123361.32 | J20: 81680998.34 | K20: 45207993.47
B21: Load group 5 | C21: $ | F21: 29141212.97 | I21: 25070527.16 | J21: 912822.1421 | K21: 3157863.668
B22: Total | F22: 830157046.2 | I22: 387018527.8 | J22: 286053962.6 | K22: 157084555.9
B23: Error check | C23: 0
B25: RAB Allocation
B27: Load group Streetlighting | C27: $ | F27: 0.004211593103 | I27: 0.006361957566 | J27: 0.002455288778 | K27: 0.002111876328
B28: Load group 1 (incl residential) | C28: $ | F28: 0.4416468073 | I28: 0.5061244784 | J28: 0.3937911349 | K28: 0.3699354379
B29: Load group 2 | C29: $ | F29: 0.1090238094 | I29: 0.1049117932 | J29: 0.1037005638 | K29: 0.1288485589
B30: Load group 3 | C30: $ | F30: 0.1823318907 | I30: 0.1573053516 | J30: 0.2113179091 | K30: 0.1912071673
B31: Load group 4 | C31: $ | F31: 0.2276826463 | I31: 0.1605177966 | J31: 0.2855440197 | K31: 0.2877940051
B32: Load group 5 | C32: $ | F32: 0.03510325317 | I32: 0.06477862262 | J32: 0.003191083717 | K32: 0.02010295443
F33: 1 | I33: 1 | J33: 1 | K33: 1
B37: Load group Streetlighting | C37: Allocator | F37: Total | I37: Dunedin | J37: Central Otago | K37: Queenstown
B39: Asset Categories
B40: 33KV Lines | C40: HV - CPD | F40: 0 | I40: 0 | J40: 0 | K40: 0
B41: 33KV Cables | C41: HV - CPD | F41: 0 | I41: 0 | J41: 0 | K41: 0
B42: Zone Subs | C42: LV - CPD | F42: 1006254.008 | I42: 668497.9394 | J42: 255536.4748 | K42: 82219.5942
B43: HV lines | C43: HV - CPD | F43: 0 | I43: 0 | J43: 0 | K43: 0
B44: LV lines | C44: LV - CPD | F44: 971453.8327 | I44: 893377.2021 | J44: 57626.55066 | K44: 20450.07995
B45: HV cables | C45: HV - CPD | F45: 0 | I45: 0 | J45: 0 | K45: 0
B46: LV cables | C46: LV - CPD | F46: 425411.5092 | I46: 220647.5044 | J46: 121001.941 | K46: 83762.06379
B47: Dist Subs | C47: LV - CPD | F47: 897504.839 | I47: 510817.0287 | J47: 253672.2187 | K47: 133015.5917
B48: Other Network Assets | C48: Shared - CPD | F48: 150130.3206 | I48: 128282.3678 | J48: 10996.57338 | K48: 10851.37943
B49: Non-Network Assets | C49: Shared - CPD | F49: 45529.17993 | I49: 40573.40834 | J49: 3511.325689 | K49: 1444.445898
F50: 3496283.69 | I50: 2462195.451 | J50: 702345.0843 | K50: 331743.155
B52: Load group 1 (incl residential) | C52: Allocator | F52: Total | I52: Dunedin | J52: Central Otago | K52: Queenstown
B54: Asset Categories
B55: 33KV Lines | C55: HV - CPD | F55: 0 | I55: 0 | J55: 0 | K55: 0
B56: 33KV Cables | C56: HV - CPD | F56: 0 | I56: 0 | J56: 0 | K56: 0
B57: Zone Subs | C57: LV - CPD | F57: 108568754 | I57: 53182242.63 | J57: 40984180.48 | K57: 14402330.85
B58: HV lines | C58: HV - CPD | F58: 0 | I58: 0 | J58: 0 | K58: 0
B59: LV lines | C59: LV - CPD | F59: 83897122.77 | I59: 71072475.06 | J59: 9242425.977 | K59: 3582221.735
B60: HV cables | C60: HV - CPD | F60: 0 | I60: 0 | J60: 0 | K60: 0
B61: LV cables | C61: LV - CPD | F61: 51632978.21 | I61: 17553575.6 | J61: 19406878.78 | K61: 14672523.83
B62: Dist Subs | C62: LV - CPD | F62: 104623365.1 | I62: 40637963.95 | J62: 40685182.04 | K62: 23300219.11
B63: Other Network Assets | C63: Shared - CPD | F63: 13869992.49 | I63: 10205482.48 | J63: 1763683.829 | K63: 1900826.174
B64: Non-Network Assets | C64: Shared - CPD | F64: 4043996.492 | I64: 3227810.768 | J64: 563163.4618 | K64: 253022.2622
F65: 366636209 | I65: 195879550.5 | J65: 112645514.6 | K65: 58111143.96
B67: Load group 2 | C67: Allocator | F67: Total | I67: Dunedin | J67: Central Otago | K67: Queenstown
B69: Asset Categories
B70: 33KV Lines | C70: HV - CPD | F70: 0 | I70: 0 | J70: 0 | K70: 0
B71: 33KV Cables | C71: HV - CPD | F71: 0 | I71: 0 | J71: 0 | K71: 0
B72: Zone Subs | C72: LV - CPD | F72: 26832924.86 | I72: 11023858.12 | J72: 10792733.12 | K72: 5016333.622
B73: HV lines | C73: HV - CPD | F73: 0 | I73: 0 | J73: 0 | K73: 0
B74: LV lines | C74: LV - CPD | F74: 18413806.69 | I74: 14732227.2 | J74: 2433891.217 | K74: 1247688.275
B75: HV cables | C75: HV - CPD | F75: 0 | I75: 0 | J75: 0 | K75: 0
B76: LV cables | C76: LV - CPD | F76: 13859615.24 | I76: 3638585.313 | J76: 5110588.057 | K76: 5110441.872
B77: Dist Subs | C77: LV - CPD | F77: 27253087.12 | I77: 8423622.75 | J77: 10713995.17 | K77: 8115469.206
B78: Other Network Assets | C78: Shared - CPD | F78: 3241943.744 | I78: 2115439.015 | J78: 464446.7364 | K78: 662057.9925
B79: Non-Network Assets | C79: Shared - CPD | F79: 905505.9449 | I79: 669075.3565 | J79: 148302.9031 | K79: 88127.68532
F80: 90506883.61 | I80: 40602807.76 | J80: 29663957.2 | K80: 20240118.65
B82: Load group 3 | C82: Allocator | F82: Total | I82: Dunedin | J82: Central Otago | K82: Queenstown
B84: Asset Categories
B85: 33KV Lines | C85: HV - CPD | F85: 18334059.68 | I85: 5772840.851 | J85: 9546916.891 | K85: 3014301.934
B86: 33KV Cables | C86: HV - CPD | F86: 15483740.1 | I86: 9658417.383 | J86: 1258833.86 | K86: 4566488.86
B87: Zone Subs | C87: LV - CPD | F87: 0 | I87: 0 | J87: 0 | K87: 0
B88: HV lines | C88: HV - CPD | F88: 65591639.37 | I88: 25684741.89 | J88: 30010131.65 | K88: 9896765.837
B89: LV lines | C89: LV - CPD | F89: 0 | I89: 0 | J89: 0 | K89: 0
B90: HV cables | C90: HV - CPD | F90: 49846023.13 | I90: 18129487.13 | J90: 19400492.8 | K90: 12316043.2
B91: LV cables | C91: LV - CPD | F91: 0 | I91: 0 | J91: 0 | K91: 0
B92: Dist Subs | C92: LV - CPD | F92: 0 | I92: 0 | J92: 0 | K92: 0
B93: Other Network Assets | C93: Shared - CPD | F93: 1631294.744 | I93: 1241829.864 | J93: 175811.5293 | K93: 213653.3513
B94: Non-Network Assets | C94: Shared - CPD | F94: 477346.7805 | I94: 392768.4763 | J94: 56138.53676 | K94: 28439.7674
F95: 151364103.8 | I95: 60880085.59 | J95: 60448325.27 | K95: 30035692.95
B97: Load group 4 | C97: Allocator | F97: Total | I97: Dunedin | J97: Central Otago | K97: Queenstown
B99: Asset Categories
B100: 33KV Lines | C100: HV - CPD | F100: 23327988.51 | I100: 5890732.159 | J100: 12900302.85 | K100: 4536953.497
B101: 33KV Cables | C101: HV - CPD | F101: 18429877.99 | I101: 9855658.825 | J101: 1701003.394 | K101: 6873215.774
B102: Zone Subs | C102: LV - CPD | F102: 0 | I102: 0 | J102: 0 | K102: 0
B103: HV lines | C103: HV - CPD | F103: 81656598.84 | I103: 26209268.35 | J103: 40551289.1 | K103: 14896041.39
B104: LV lines | C104: LV - CPD | F104: 0 | I104: 0 | J104: 0 | K104: 0
B105: HV cables | C105: HV - CPD | F105: 63252100.25 | I105: 18499722.34 | J105: 26214979.7 | K105: 18537398.21
B106: LV cables | C106: LV - CPD | F106: 0 | I106: 0 | J106: 0 | K106: 0
B107: Dist Subs | C107: LV - CPD | F107: 0 | I107: 0 | J107: 0 | K107: 0
B108: Other Network Assets | C108: Shared - CPD | F108: 1826334.773 | I108: 1267190.159 | J108: 237565.9072 | K108: 321578.7072
B109: Non-Network Assets | C109: Shared - CPD | F109: 519452.7628 | I109: 400789.482 | J109: 75857.38245 | K109: 42805.89834
F110: 189012353.1 | I110: 62123361.32 | J110: 81680998.34 | K110: 45207993.47
B112: Load group 5 | C112: Allocator | F112: Total | I112: Dunedin | J112: Central Otago | K112: Queenstown
B114: Asset Categories
B115: 33KV Lines | C115: HV - CPD | F115: 2838347.585 | I115: 2377266.095 | J115: 144166.7257 | K115: 316914.7647
B116: 33KV Cables | C116: HV - CPD | F116: 4476469.975 | I116: 3977353.398 | J116: 19009.48315 | K116: 480107.0941
B117: Zone Subs | C117: LV - CPD | F117: 0 | I117: 0 | J117: 0 | K117: 0
B118: HV lines | C118: HV - CPD | F118: 12070717.86 | I118: 10577022.24 | J118: 453179.0176 | K118: 1040516.605
B119: LV lines | C119: LV - CPD | F119: 0 | I119: 0 | J119: 0 | K119: 0
B120: HV cables | C120: HV - CPD | F120: 9053591.454 | I120: 7465754.934 | J120: 292964.2685 | K120: 1294872.252
B121: LV cables | C121: LV - CPD | F121: 0 | I121: 0 | J121: 0 | K121: 0
B122: Dist Subs | C122: LV - CPD | F122: 0 | I122: 0 | J122: 0 | K122: 0
B123: Other Network Assets | C123: Shared - CPD | F123: 536505.5252 | I123: 511387.739 | J123: 2654.906584 | K123: 22462.87964
B124: Non-Network Assets | C124: Shared - CPD | F124: 165580.5681 | I124: 161742.7547 | J124: 847.7405976 | K124: 2990.072789
F125: 29141212.97 | I125: 25070527.16 | J125: 912822.1421 | K125: 3157863.668

Sheet RAB - Depreciation Allocations
B2: =MID(CELL("filename",A1),FIND("]",CELL("filename",A1))+1,255) -> RAB - Depreciation Allocations
B3: ='Name labels'!B8 -> Pricing Area Name | I3: Dunedin | J3: Central Otago | K3: Queenstown
I4: 1 | J4: 2 | K4: 3
B7: Description
B9: In this sheet the Depreciation is allocated to load groups based on the inputs from the Asset Mapping worksheet.
B10: More information about pricing area allocations are provided in section 3.5 of the Pricing Methodology.
B12: RAB Allocator Summary | C12: Units | F12: Total
B14: Load Group Summary
B16: ='Name labels'!C10 -> Load group Streetlighting | C16: $ | F16: 139470.693 | I16: 100603.259 | J16: 25601.45298 | K16: 13265.98101
B17: ='Name labels'!C11 -> Load group 1 (incl residential) | C17: $ | F17: 14433350.62 | I17: 8003475.575 | J17: 4106085.327 | K17: 2323789.717
B18: ='Name labels'!C12 -> Load group 2 | C18: $ | F18: 3549665.619 | I18: 1658996.967 | J18: 1081292.405 | K18: 809376.2469
B19: ='Name labels'!C13 -> Load group 3 | C19: $ | F19: 4492799.316 | I19: 1860235.483 | J19: 1797351.54 | K19: 835212.2933
B20: ='Name labels'!C14 -> Load group 4 | C20: $ | F20: 5584015.254 | I20: 1898224.681 | J20: 2428677.18 | K20: 1257113.394
B21: ='Name labels'!C15 -> Load group 5 | C21: $ | F21: 881001.5794 | I21: 766048.269 | J21: 27141.5672 | K21: 87811.74321
B22: Total | F22: 29080303.08 | I22: 14287584.23 | J22: 9466149.472 | K22: 5326569.375
B23: Error check | C23: 0
B25: RAB Allocation
B27: ='Name labels'!C10 & " " &$C$14 -> Load group Streetlighting | C27: $ | F27: 0.004796053625 | I27: 0.007041306449 | J27: 0.002704526593 | K27: 0.002490530035
B28: ='Name labels'!C11 & " " &$C$14 -> Load group 1 (incl residential) | C28: $ | F28: 0.4963273794 | I28: 0.5601699661 | J28: 0.4337651058 | K28: 0.4362638602
B29: ='Name labels'!C12 & " " &$C$14 -> Load group 2 | C29: $ | F29: 0.122064258 | I29: 0.1161145887 | J29: 0.1142272693 | K29: 0.1519507566
B30: ='Name labels'!C13 & " " &$C$14 -> Load group 3 | C30: $ | F30: 0.154496303 | I30: 0.1301994411 | J30: 0.1898714514 | K30: 0.1568011668
B31: ='Name labels'!C14 & " " &$C$14 -> Load group 4 | C31: $ | F31: 0.1920205315 | I31: 0.132858337 | J31: 0.2565644233 | K31: 0.2360080767
B32: ='Name labels'!C15 & " " &$C$14 -> Load group 5 | C32: $ | F32: 0.03029547446 | I32: 0.05361636064 | J32: 0.002867223604 | K32: 0.0164856096
F33: 1 | I33: 1 | J33: 1 | K33: 1
B37: =B16 -> Load group Streetlighting | C37: Allocator | F37: Total | I37: Dunedin | J37: Central Otago | K37: Queenstown
B39: Asset Categories
B40: ='Asset Mapping'!B12 -> 33KV Lines | C40: HV - CPD | F40: 0 | I40: 0 | J40: 0 | K40: 0
B41: ='Asset Mapping'!B13 -> 33KV Cables | C41: HV - CPD | F41: 0 | I41: 0 | J41: 0 | K41: 0
B42: ='Asset Mapping'!B14 -> Zone Subs | C42: LV - CPD | F42: 34690.94725 | I42: 24075.67376 | J42: 7091.716506 | K42: 3523.55698
B43: ='Asset Mapping'!B15 -> HV lines | C43: HV - CPD | F43: 0 | I43: 0 | J43: 0 | K43: 0
B44: ='Asset Mapping'!B16 -> LV lines | C44: LV - CPD | F44: 23807.537 | I44: 21728.66079 | J44: 1532.119598 | K44: 546.7566139
B45: ='Asset Mapping'!B17 -> HV cables | C45: HV - CPD | F45: 0 | I45: 0 | J45: 0 | K45: 0
B46: ='Asset Mapping'!B18 -> LV cables | C46: LV - CPD | F46: 12956.58011 | I46: 6440.877279 | J46: 3752.02444 | K46: 2763.678391
B47: ='Asset Mapping'!B19 -> Dist Subs | C47: LV - CPD | F47: 33463.72101 | I47: 19753.42168 | J47: 8903.89831 | K47: 4806.401022
B48: ='Asset Mapping'!B20 -> Other Network Assets | C48: Shared - CPD | F48: 19428.56455 | I48: 15371.92867 | J48: 2908.116664 | K48: 1148.519216
B49: ='Asset Mapping'!B21 -> Non-Network Assets | C49: Shared - CPD | F49: 15123.34307 | I49: 13232.69682 | J49: 1413.577464 | K49: 477.0687874
F50: 139470.693 | I50: 100603.259 | J50: 25601.45298 | K50: 13265.98101
B52: =B17 -> Load group 1 (incl residential) | C52: Allocator | F52: Total | I52: Dunedin | J52: Central Otago | K52: Queenstown
B54: Asset Categories
B55: =B40 -> 33KV Lines | C55: HV - CPD | F55: 0 | I55: 0 | J55: 0 | K55: 0
B56: 33KV Cables | C56: HV - CPD | F56: 0 | I56: 0 | J56: 0 | K56: 0
B57: Zone Subs | C57: LV - CPD | F57: 3669958.397 | I57: 1915336.231 | J57: 1137403.924 | K57: 617218.2419
B58: HV lines | C58: HV - CPD | F58: 0 | I58: 0 | J58: 0 | K58: 0
B59: LV lines | C59: LV - CPD | F59: 2070123.637 | I59: 1728620.003 | J59: 245728.7797 | K59: 95774.85421
B60: HV cables | C60: HV - CPD | F60: 0 | I60: 0 | J60: 0 | K60: 0
B61: LV cables | C61: LV - CPD | F61: 1598281.826 | I61: 512402.9231 | J61: 601767.8961 | K61: 484111.0071
B62: Dist Subs | C62: LV - CPD | F62: 3841463.479 | I62: 1571480.184 | J62: 1428050.44 | K62: 841932.8554
B63: Other Network Assets | C63: Shared - CPD | F63: 1890514.161 | I63: 1222911.234 | J63: 466417.8697 | K63: 201185.0569
B64: Non-Network Assets | C64: Shared - CPD | F64: 1363009.118 | I64: 1052725 | J64: 226716.4167 | K64: 83567.70161
F65: 14433350.62 | I65: 8003475.575 | J65: 4106085.327 | K65: 2323789.717
B67: =B18 -> Load group 2 | C67: Allocator | F67: Total | I67: Dunedin | J67: Central Otago | K67: Queenstown
B69: Asset Categories
B70: =B55 -> 33KV Lines | C70: HV - CPD | F70: 0 | I70: 0 | J70: 0 | K70: 0
B71: 33KV Cables | C71: HV - CPD | F71: 0 | I71: 0 | J71: 0 | K71: 0
B72: Zone Subs | C72: LV - CPD | F72: 911519.6435 | I72: 397019.6408 | J72: 299522.8124 | K72: 214977.1903
B73: HV lines | C73: HV - CPD | F73: 0 | I73: 0 | J73: 0 | K73: 0
B74: LV lines | C74: LV - CPD | F74: 456384.6132 | I74: 358316.2484 | J74: 64709.97119 | K74: 33358.39361
B75: HV cables | C75: HV - CPD | F75: 0 | I75: 0 | J75: 0 | K75: 0
B76: LV cables | C76: LV - CPD | F76: 433298.0979 | I76: 106213.2179 | J76: 158468.9562 | K76: 168615.9238
B77: Dist Subs | C77: LV - CPD | F77: 995050.2824 | I77: 325743.589 | J77: 376061.3754 | K77: 293245.318
B78: Other Network Assets | C78: Shared - CPD | F78: 446389.4212 | I78: 253490.6254 | J78: 122826.0155 | K78: 70072.78029
B79: Non-Network Assets | C79: Shared - CPD | F79: 307023.5609 | I79: 218213.6455 | J79: 59703.27454 | K79: 29106.64084
F80: 3549665.619 | I80: 1658996.967 | J80: 1081292.405 | K80: 809376.2469
B82: =B19 -> Load group 3 | C82: Allocator | F82: Total | I82: Dunedin | J82: Central Otago | K82: Queenstown
B84: Asset Categories
B85: =B70 -> 33KV Lines | C85: HV - CPD | F85: 547252.6331 | I85: 167533.8352 | J85: 291938.4946 | K85: 87780.30339
B86: =B71 -> 33KV Cables | C86: HV - CPD | F86: 343211.1833 | I86: 261879.4419 | J86: 36867.91251 | K86: 44463.82885
B87: Zone Subs | C87: LV - CPD | F87: 0 | I87: 0 | J87: 0 | K87: 0
B88: HV lines | C88: HV - CPD | F88: 1687184.768 | I88: 624702.581 | J88: 797880.6697 | K88: 264601.517
B89: LV lines | C89: LV - CPD | F89: 0 | I89: 0 | J89: 0 | K89: 0
B90: HV cables | C90: HV - CPD | F90: 1537144.482 | I90: 529214.2416 | J90: 601569.8799 | K90: 406360.3607
B91: LV cables | C91: LV - CPD | F91: 0 | I91: 0 | J91: 0 | K91: 0
B92: Dist Subs | C92: LV - CPD | F92: 0 | I92: 0 | J92: 0 | K92: 0
B93: Other Network Assets | C93: Shared - CPD | F93: 217914.8206 | I93: 148807.045 | J93: 46494.52335 | K93: 22613.25218
B94: Non-Network Assets | C94: Shared - CPD | F94: 160091.4288 | I94: 128098.3378 | J94: 22600.05977 | K94: 9393.031171
F95: 4492799.316 | I95: 1860235.483 | J95: 1797351.54 | K95: 835212.2933
B97: =B20 -> Load group 4 | C97: Allocator | F97: Total | I97: Dunedin | J97: Central Otago | K97: Queenstown
B99: Asset Categories
B100: =B85 -> 33KV Lines | C100: HV - CPD | F100: 697559.8665 | I100: 170955.1633 | J100: 394482.851 | K100: 132121.8521
B101: =B86 -> 33KV Cables | C101: HV - CPD | F101: 383969.749 | I101: 267227.4691 | J101: 49817.88804 | K101: 66924.39185
B102: Zone Subs | C102: LV - CPD | F102: 0 | I102: 0 | J102: 0 | K102: 0
B103: HV lines | C103: HV - CPD | F103: 2113861.907 | I103: 637460.0788 | J103: 1078138.879 | K103: 398262.9491
B104: LV lines | C104: LV - CPD | F104: 0 | I104: 0 | J104: 0 | K104: 0
B105: HV cables | C105: HV - CPD | F105: 1964525.171 | I105: 540021.7038 | J105: 812873.2789 | K105: 611630.1883
B106: LV cables | C106: LV - CPD | F106: 0 | I106: 0 | J106: 0 | K106: 0
B107: Dist Subs | C107: LV - CPD | F107: 0 | I107: 0 | J107: 0 | K107: 0
B108: Other Network Assets | C108: Shared - CPD | F108: 248707.9812 | I108: 151845.94 | J108: 62825.8776 | K108: 34036.16353
B109: Non-Network Assets | C109: Shared - CPD | F109: 175390.5796 | I109: 130714.3255 | J109: 30538.40509 | K109: 14137.84901
F110: 5584015.254 | I110: 1898224.681 | J110: 2428677.18 | K110: 1257113.394
B112: =B21 -> Load group 5 | C112: Allocator | F112: Total | I112: Dunedin | J112: Central Otago | K112: Queenstown
B114: Asset Categories
B115: =B100 -> 33KV Lines | C115: HV - CPD | F115: 82628.2155 | I115: 68990.73028 | J115: 4408.524484 | K115: 9228.960735
B116: =B101 -> 33KV Cables | C116: HV - CPD | F116: 113073.9509 | I116: 107842.4184 | J116: 556.7374567 | K116: 4674.795082
B117: Zone Subs | C117: LV - CPD | F117: 0 | I117: 0 | J117: 0 | K117: 0
B118: HV lines | C118: HV - CPD | F118: 297121.739 | I118: 257253.6301 | J118: 12048.69016 | K118: 27819.41867
B119: LV lines | C119: LV - CPD | F119: 0 | I119: 0 | J119: 0 | K119: 0
B120: HV cables | C120: HV - CPD | F120: 269739.1127 | I120: 217931.3627 | J120: 9084.226965 | K120: 42723.52303
B121: LV cables | C121: LV - CPD | F121: 0 | I121: 0 | J121: 0 | K121: 0
B122: Dist Subs | C122: LV - CPD | F122: 0 | I122: 0 | J122: 0 | K122: 0
B123: Other Network Assets | C123: Shared - CPD | F123: 64358.6028 | I123: 61279.00491 | J123: 702.1076301 | K123: 2377.490262
B124: Non-Network Assets | C124: Shared - CPD | F124: 54079.95852 | I124: 52751.12258 | J124: 341.2805049 | K124: 987.5554368
F125: 881001.5794 | I125: 766048.269 | J125: 27141.5672 | K125: 87811.74321

Sheet Load Group Allocations
B2: Load Group Allocations
B3: Pricing Area Name | G3: Dunedin | H3: Central Otago | I3: Queenstown
G4: 1 | H4: 2 | I4: 3
B7: Description
B9: In this sheet the cost of supply for each pricing area is allocated to each load group.
B10: More information about load group allocation is provided in section 3.6 of the Pricing Methodology.
B12: Load group Streetlighting | C12: Units | D12: Allocator | E12: Distribution / Passthrough | F12: Tariff Types
B14: Load Group Allocators
B16: ICP Count | C16: % | G16: 3.540501131e-05 | H16: 0.0003041162166 | I16: 0.0002042610535
B17: CPD | C17: % | G17: 0.008292539651 | H17: 0.004141586771 | I17: 0.003465310657
B18: Prior year distribution revenue | C18: % | G18: 0.008575461056 | H18: 0.002933320497 | I18: 0.003104659856
B19: MWh | C19: % | G19: 0.005459100435 | H19: 0.002849693569 | I19: 0.002595165531
B20: Regulated Asset Base | C20: % | G20: 0.006361957566 | H20: 0.002455288778 | I20: 0.002111876328
B21: Regulated Asset Base (Depreciation) | G21: 0.007041306449 | H21: 0.002704526593 | I21: 0.002490530035
B23: Load group Streetlighting Allocation
A25: Load group Streetlighting | B25: Service interruptions and emergencies | C25: $ | D25: CPD | E25: Distribution | F25: Capacity | G25: 7.874665642 | H25: 4.722665163 | I25: 1.419659911
A26: Load group Streetlighting | B26: Service interruptions and emergencies | C26: $ | D26: ICP Count | E26: Distribution | F26: Daily Fixed | G26: 0.05307333944 | H26: 0.185756688 | I26: 0.07961000915
A27: Load group Streetlighting | B27: Vegetation management | C27: $ | D27: CPD | E27: Distribution | F27: Distance | G27: 14.67380143 | H27: 7.663751253 | I27: 1.442997695
B28: Routine and corrective maintenance and inspection | C28: $ | D28: CPD | E28: Distribution | F28: Capacity | G28: 31.63909397 | H28: 18.97488143 | I28: 5.703956891
B29: System operations and network support | C29: $ | D29: ICP Count | E29: Distribution | F29: Daily Fixed | G29: 0.3170006711 | H29: 1.109502349 | I29: 0.4755010066
B30: Business support | C30: $ | D30: ICP Count | E30: Distribution | F30: Daily Fixed | G30: 0.3366017302 | H30: 1.178106056 | I30: 0.5049025952
B31: Depreciation | C31: $ | D31: Regulated Asset Base (Depreciation) | E31: Distribution | F31: Capacity | G31: 87.41782953 | H31: 22.24603333 | I31: 11.52729323
B32: Asset revaluations and other regulatory revenue | C32: $ | D32: Regulated Asset Base | E32: Distribution | F32: Capacity | G32: -49.35198623 | H32: -14.07773088 | I32: -6.64942485
B33: Tax | C33: $ | D33: Regulated Asset Base | E33: Distribution | F33: Capacity | G33: 22.03804142 | H33: 6.286385613 | I33: 2.969288806
B34: Return on capital | C34: $ | D34: Regulated Asset Base | E34: Distribution | F34: Capacity | G34: 152.0074345 | H34: 43.36035727 | I34: 20.48067545
B35: Local Authority rates | C35: $ | D35: Regulated Asset Base | E35: Passthrough | F35: Capacity | G35: 5.4376405 | H35: 1.551095415 | I35: 0.7326388385
B36: Commerce Act levies | C36: $ | D36: Regulated Asset Base | E36: Passthrough | F36: Capacity | G36: 1.31803972 | H36: 0.3759728814 | I36: 0.1775856807
B37: Electricity Authority levies | C37: $ | D37: MWh | E37: Passthrough | F37: Capacity | G37: 0.9657413469 | H37: 0.2038771124 | I37: 0.1585594967
B38: Electricity Authority levies | C38: $ | D38: ICP Count | E38: Passthrough | F38: Daily Fixed | G38: 0.001643136054 | H38: 0.005750976189 | I38: 0.002464704081
B39: Utilities Disputes levies | C39: $ | D39: ICP Count | E39: Passthrough | F39: Daily Fixed | G39: 0.001501670241 | H39: 0.005255845844 | I39: 0.002252505362
B40: Opex Incentive Amount | C40: $ | D40: Prior year distribution revenue | E40: Passthrough | F40: Daily Fixed | G40: 131.632004 | H40: 26.21041376 | I40: 15.46002662
B41: Capex Incentive Amount | C41: $ | D41: Regulated Asset Base | E41: Passthrough | F41: Capacity | G41: 0 | H41: 0 | I41: 0
B42: Transpower - Connection charge | C42: $ | D42: MWh | E42: Passthrough | F42: Capacity | G42: 15.93996852 | H42: 4.052738444 | I42: 5.946439361
B43: Transpower - Benefit-based Charge | D43: MWh | E43: Passthrough | F43: Capacity | G43: 9.071980694 | H43: 1.315147066 | I43: 2.104830921
B44: Transpower - Residual Charge | D44: MWh | E44: Passthrough | F44: Capacity | G44: 65.24810048 | H44: 12.18932866 | I44: 9.62647554
B45: Transpower - Transitional Price Cap | D45: MWh | E45: Passthrough | F45: Capacity | G45: 0.04153588792 | H45: 0.007547359762 | I45: 0.006556373764
B46: Transpower - Interconnection costs | C46: $ | D46: MWh | E46: Passthrough | F46: Capacity | G46: 0 | H46: 0 | I46: 0
B47: Transpower - New investment contract | C47: $ | D47: MWh | E47: Passthrough | F47: Capacity | G47: 1.785110659 | H47: 0.4538645471 | I47: 0.6659393506
A48: Load group Streetlighting | B48: Distributed Generation Allowance | C48: $ | D48: MWh | E48: Passthrough | F48: Capacity | G48: 0 | H48: 0 | I48: 0
A49: Load group Streetlighting | B49: CPP recoverable costs | C49: $ | D49: ICP Count | E49: Passthrough | F49: Daily Fixed | G49: 0 | H49: 0 | I49: 0
A50: Load group Streetlighting | B50: Quality Incentive Adjustments | C50: $ | D50: ICP Count | E50: Passthrough | F50: Daily Fixed | G50: -0.01061696403 | H50: -0.0371593741 | I50: -0.01592544604
A51: Load group Streetlighting | B51: Capex Wash-up Adjustment | C51: $ | D51: Regulated Asset Base | E51: Passthrough | F51: Capacity | G51: -2.538142748 | H51: -0.724009169 | I51: -0.341975891
A52: Load group Streetlighting | B52: Fire and Emergency Management New Zealand (FENZ) levies | C52: $ | D52: Regulated Asset Base | E52: Passthrough | F52: Capacity | G52: 0.2348430778 | H52: 0.06698935343 | I52: 0.03164151064
B53: Total | G53: 496.134906 | H53: 137.3265212 | I53: 72.51197031
E55: Distribution | G55: 267.0055561 | H55: 91.64970828 | I55: 37.95446074
E56: Passthrough | G56: 229.1293499 | H56: 45.67681287 | I56: 34.55750957
B58: Load group 1 (incl residential) | C58: Units | D58: Allocator | E58: Distribution / Passthrough
B60: Price category allocators
B62: ICP Count | C62: % | G62: 0.9386513379 | H62: 0.8960861477 | I62: 0.861610618
B63: CPD | C63: % | G63: 0.6597116159 | H63: 0.6642477941 | I63: 0.6070152871
B64: Prior year distribution revenue | C64: % | G64: 0.6793402754 | H64: 0.6701209169 | I64: 0.6147422224
B65: MWh | C65: % | G65: 0.5537407779 | H65: 0.4543058141 | I65: 0.4429442599
B66: Regulated Asset Base | C66: % | G66: 0.5061244784 | H66: 0.3937911349 | I66: 0.3699354379
B67: Regulated Asset Base (Depreciation) | G67: 0.5601699661 | H67: 0.4337651058 | I67: 0.4362638602
B69: Load group 1 (incl residential) Allocation
A71: Load group Streetlighting | B71: Service interruptions and emergencies | C71: $ | D71: CPD | E71: Distribution | F71: Capacity | G71: 626.4677184 | H71: 757.4439678 | I71: 248.6805236
A72: Load group Streetlighting | B72: Service interruptions and emergencies | C72: $ | D72: ICP Count | E72: Distribution | F72: Daily Fixed | G72: 1407.070898 | H72: 547.3367941 | I72: 335.809632
A73: Load group Streetlighting | B73: Vegetation management | C73: $ | D73: CPD | E73: Distribution | F73: Distance | G73: 1167.371838 | H73: 1229.149634 | I73: 252.7685817
B74: Routine and corrective maintenance and inspection | C74: $ | D74: CPD | E74: Distribution | F74: Capacity | G74: 2517.042871 | H74: 3043.283609 | I74: 999.156893
B75: System operations and network support | C75: $ | D75: ICP Count | E75: Distribution | F75: Daily Fixed | G75: 8404.265186 | H75: 3269.176819 | I75: 2005.75053
B76: Business support | C76: $ | D76: ICP Count | E76: Distribution | F76: Daily Fixed | G76: 8923.924964 | H76: 3471.319382 | I76: 2129.771827
B77: Depreciation | C77: $ | D77: Regulated Asset Base (Depreciation) | E77: Distribution | F77: Capacity | G77: 6954.510922 | H77: 3567.926832 | I77: 2019.225375
B78: Asset revaluations and other regulatory revenue | C78: $ | D78: Regulated Asset Base | E78: Distribution | F78: Capacity | G78: -3926.189075 | H78: -2257.854827 | I78: -1164.773648
B79: Tax | C79: $ | D79: Regulated Asset Base | E79: Distribution | F79: Capacity | G79: 1753.232728 | H79: 1008.241046 | I79: 520.1275947
B80: Return on capital | C80: $ | D80: Regulated Asset Base | E80: Distribution | F80: Capacity | G80: 12092.92623 | H80: 6954.344618 | I80: 3587.581119
B81: Local Authority rates | C81: $ | D81: Regulated Asset Base | E81: Passthrough | F81: Capacity | G81: 432.5905876 | H81: 248.7722134 | I81: 128.3356729
B82: Commerce Act levies | C82: $ | D82: Regulated Asset Base | E82: Passthrough | F82: Capacity | G82: 104.8564312 | H82: 60.3003561 | I82: 31.10752068
B83: Electricity Authority levies | C83: $ | D83: MWh | E83: Passthrough | F83: Capacity | G83: 97.9594296 | H83: 32.50263765 | I83: 27.06302087
B84: Electricity Authority levies | C84: $ | D84: ICP Count | E84: Passthrough | F84: Daily Fixed | G84: 43.56252965 | H84: 16.94539725 | I84: 10.39657424
B85: Utilities Disputes levies | C85: $ | D85: ICP Count | E85: Passthrough | F85: Daily Fixed | G85: 39.81201328 | H85: 15.48648312 | I85: 9.501481089
B86: Opex Incentive Amount | C86: $ | D86: Prior year distribution revenue | E86: Passthrough | F86: Daily Fixed | G86: 10427.7684 | H86: 5987.803417 | I86: 3061.182726
B87: Capex Incentive Amount | C87: $ | D87: Regulated Asset Base | E87: Passthrough | F87: Capacity | G87: 0 | H87: 0 | I87: 0
B88: Transpower - Connection charge | C88: $ | D88: MWh | E88: Passthrough | F88: Capacity | G88: 1616.861729 | H88: 646.098464 | I88: 1014.941494
B89: Transpower - Benefit-based Charge | C89: $ | D89: MWh | E89: Passthrough | F89: Capacity | G89: 920.2112522 | H89: 209.6642828 | I89: 359.253683
B90: Transpower - Residual Charge | C90: $ | D90: MWh | E90: Passthrough | F90: Capacity | G90: 6618.404324 | H90: 1943.255562 | I90: 1643.052065
B91: Transpower - Transitional Price Cap | C91: $ | D91: MWh | E91: Passthrough | F91: Capacity | G91: 4.213169398 | H91: 1.203220394 | I91: 1.119045429
B92: Transpower - Interconnection costs | C92: $ | D92: MWh | E92: Passthrough | F92: Capacity | G92: 0 | H92: 0 | I92: 0
B93: Transpower - New investment contract | C93: $ | D93: MWh | E93: Passthrough | F93: Capacity | G93: 181.0716942 | H93: 72.35630693 | I93: 113.6628895
A94: Load group Streetlighting | B94: Distributed Generation Allowance | C94: $ | D94: MWh | E94: Passthrough | F94: Capacity | G94: 0 | H94: 0 | I94: 0
A95: Load group Streetlighting | B95: CPP recoverable costs | C95: $ | D95: ICP Count | E95: Passthrough | F95: Daily Fixed | G95: 0 | H95: 0 | I95: 0
A96: Load group Streetlighting | B96: Quality Incentive Adjustments | C96: $ | D96: ICP Count | E96: Passthrough | F96: Daily Fixed | G96: -281.4750545 | H96: -109.4910385 | I96: -67.17645471
A97: Load group Streetlighting | B97: Capex Wash-up Adjustment | C97: $ | D97: Regulated Asset Base | E97: Passthrough | F97: Capacity | G97: -201.9215251 | H97: -116.1201057 | I97: -59.90360293
A98: Load group Streetlighting | B98: Fire and Emergency Management New Zealand (FENZ) levies | C98: $ | D98: Regulated Asset Base | E98: Passthrough | F98: Capacity | G98: 18.68290208 | H98: 10.74407774 | I98: 5.542614376
B99: Total | G99: 59943.22216 | H99: 30609.88915 | I99: 17212.17716
E101: Distribution | G101: 39920.62428 | H101: 21590.36788 | I101: 10934.09843
E102: Passthrough | G102: 20022.59788 | H102: 9019.521275 | I102: 6278.07873
B104: Load group 2 | C104: Units | D104: Allocator | E104: Distribution / Passthrough
B106: Price category allocators
B108: ICP Count | C108: % | G108: 0.05623689434 | H108: 0.09492533068 | I108: 0.1304722609
B109: CPD | C109: % | G109: 0.1367480365 | H109: 0.1749223501 | I109: 0.2114234998
B110: Prior year distribution revenue | C110: % | G110: 0.1578550106 | H110: 0.1515410142 | I110: 0.2061604125
B111: MWh | C111: % | G111: 0.1603564131 | H111: 0.2540996606 | I111: 0.253654149
B112: Regulated Asset Base | C112: % | G112: 0.1049117932 | H112: 0.1037005638 | I112: 0.1288485589
B113: Regulated Asset Base (Depreciation) | G113: 0.1161145887 | H113: 0.1142272693 | I113: 0.1519507566
B115: Load group 2 Allocation
A117: Load group Streetlighting | B117: Service interruptions and emergencies | C117: $ | D117: CPD | E117: Distribution | F117: Capacity | G117: 129.8570896 | H117: 199.4645373 | I117: 86.61545724
A118: Load group Streetlighting | B118: Service interruptions and emergencies | C118: $ | D118: ICP Count | E118: Distribution | F118: Daily Fixed | G118: 84.30105432 | H118: 57.98117324 | I118: 50.85109328
A119: Load group Streetlighting | B119: Vegetation management | C119: $ | D119: CPD | E119: Distribution | F119: Distance | G119: 241.9781656 | H119: 323.683036 | I119: 88.03932839
B120: Routine and corrective maintenance and inspection | C120: $ | D120: CPD | E120: Distribution | F120: Capacity | G120: 521.7441409 | H120: 801.4152634 | I120: 348.0064698
B121: System operations and network support | C121: $ | D121: ICP Count | E121: Distribution | F121: Daily Fixed | G121: 503.520055 | H121: 346.3145719 | I121: 303.7274621
B122: Business support | C122: $ | D122: ICP Count | E122: Distribution | F122: Daily Fixed | G122: 534.6541416 | H122: 367.7281934 | I122: 322.5078007
B123: Depreciation | C123: $ | D123: Regulated Asset Base (Depreciation) | E123: Distribution | F123: Capacity | G123: 1441.562783 | H123: 939.5742851 | I123: 703.2964486
B124: Asset revaluations and other regulatory revenue | C124: $ | D124: Regulated Asset Base | E124: Distribution | F124: Capacity | G124: -813.8384013 | H124: -594.5812331 | I124: -405.6908061
B125: Tax | C125: $ | D125: Regulated Asset Base | E125: Distribution | F125: Capacity | G125: 363.4180864 | H125: 265.5091891 | I125: 181.1605058
B126: Return on capital | C126: $ | D126: Regulated Asset Base | E126: Distribution | F126: Capacity | G126: 2506.676974 | H126: 1831.35016 | I126: 1249.554949
B127: Local Authority rates | C127: $ | D127: Regulated Asset Base | E127: Passthrough | F127: Capacity | G127: 89.66935253 | H127: 65.511426 | I127: 44.69933078
B128: Commerce Act levies | C128: $ | D128: Regulated Asset Base | E128: Passthrough | F128: Capacity | G128: 21.73511991 | H128: 15.8794355 | I128: 10.83475331
B129: Electricity Authority levies | C129: $ | D129: MWh | E129: Passthrough | F129: Capacity | G129: 28.3678273 | H129: 18.17918446 | I129: 15.49776834
B130: Electricity Authority levies | C130: $ | D130: ICP Count | E130: Passthrough | F130: Daily Fixed | G130: 2.609937554 | H130: 1.795081244 | I130: 1.574335922
B131: Utilities Disputes levies | C131: $ | D131: ICP Count | E131: Passthrough | F131: Daily Fixed | G131: 2.385234958 | H131: 1.640533709 | I131: 1.438793457
B132: Opex Incentive Amount | C132: $ | D132: Prior year distribution revenue | E132: Passthrough | F132: Daily Fixed | G132: 2423.050055 | H132: 1354.080703 | I132: 1026.600534
B133: Capex Incentive Amount | C133: $ | D133: Regulated Asset Base | E133: Passthrough | F133: Capacity | G133: 0 | H133: 0 | I133: 0
B134: Transpower - Connection charge | C134: $ | D134: MWh | E134: Passthrough | F134: Capacity | G134: 468.2229621 | H134: 361.3719995 | I134: 581.2111012
B135: Transpower - Benefit-based Charge | C135: $ | D135: MWh | E135: Passthrough | F135: Capacity | G135: 266.4816852 | H135: 117.2681957 | I135: 205.7283398
B136: Transpower - Residual Charge | C136: $ | D136: MWh | E136: Passthrough | F136: Capacity | G136: 1916.607228 | H136: 1086.890292 | I136: 940.9016236
B137: Transpower - Transitional Price Cap | C137: $ | D137: MWh | E137: Passthrough | F137: Capacity | G137: 1.220081235 | H137: 0.6729781667 | I137: 0.6408267173
B138: Transpower - Interconnection costs | C138: $ | D138: MWh | E138: Passthrough | F138: Capacity | G138: 0 | H138: 0 | I138: 0
B139: Transpower - New investment contract | C139: $ | D139: MWh | E139: Passthrough | F139: Capacity | G139: 52.43610106 | H139: 40.46990478 | I139: 65.08959729
A140: Load group Streetlighting | B140: Distributed Generation Allowance | C140: $ | D140: MWh | E140: Passthrough | F140: Capacity | G140: 0 | H140: 0 | I140: 0
A141: Load group Streetlighting | B141: CPP recoverable costs | C141: $ | D141: ICP Count | E141: Passthrough | F141: Daily Fixed | G141: 0 | H141: 0 | I141: 0
A142: Load group Streetlighting | B142: Quality Incentive Adjustments | C142: $ | D142: ICP Count | E142: Passthrough | F142: Daily Fixed | G142: -16.86385803 | H142: -11.59874312 | I142: -10.17241866
A143: Load group Streetlighting | B143: Capex Wash-up Adjustment | C143: $ | D143: Regulated Asset Base | E143: Passthrough | F143: Capacity | G143: -41.85521585 | H143: -30.57895255 | I143: -20.86443234
A144: Load group Streetlighting | B144: Fire and Emergency Management New Zealand (FENZ) levies | C144: $ | D144: Regulated Asset Base | E144: Passthrough | F144: Capacity | G144: 3.872677264 | H144: 2.829334692 | I144: 1.930493275
B145: Total | G145: 10731.81328 | H145: 7562.850549 | I145: 5793.179356
E147: Distribution | G147: 5513.87409 | H147: 4538.439176 | I147: 2928.068709
E148: Passthrough | G148: 5217.939188 | H148: 3024.411373 | I148: 2865.110647
B150: Load group 3 | C150: Units | D150: Allocator | E150: Distribution / Passthrough
B152: Price category allocators
B154: ICP Count | C154: % | G154: 0.003642895133 | H154: 0.006707175137 | I154: 0.005184686502
B155: CPD | C155: % | G155: 0.08027543894 | H155: 0.06621505431 | I155: 0.06822867451
B156: Prior year distribution revenue | C156: % | G156: 0.08056508479 | H156: 0.0811850101 | I156: 0.1068359065
B157: MWh | C157: % | G157: 0.1022678489 | H157: 0.1299953925 | I157: 0.08655353731
B158: Regulated Asset Base | C158: % | G158: 0.1573053516 | H158: 0.2113179091 | I158: 0.1912071673
B159: Regulated Asset Base (Depreciation) | G159: 0.1301994411 | H159: 0.1898714514 | I159: 0.1568011668
B161: Load group 3 Allocation
A163: Load group Streetlighting | B163: Service interruptions and emergencies | C163: $ | D163: CPD | E163: Distribution | F163: Capacity | G163: 76.23023434 | H163: 75.50524655 | I163: 27.95175487
A164: Load group Streetlighting | B164: Service interruptions and emergencies | C164: $ | D164: ICP Count | E164: Distribution | F164: Daily Fixed | G164: 5.460826101 | H164: 4.096797775 | I164: 2.020712872
A165: Load group Streetlighting | B165: Vegetation management | C165: $ | D165: CPD | E165: Distribution | F165: Distance | G165: 142.0488656 | H165: 122.52688 | I165: 28.41125365
B166: Routine and corrective maintenance and inspection | C166: $ | D166: CPD | E166: Distribution | F166: Capacity | G166: 306.2803753 | H166: 303.3674952 | I166: 112.305492
B167: System operations and network support | C167: $ | D167: ICP Count | E167: Distribution | F167: Daily Fixed | G167: 32.6168573 | H167: 24.46968021 | I167: 12.06947486
B168: Business support | C168: $ | D168: ICP Count | E168: Distribution | F168: Daily Fixed | G168: 34.63365097 | H168: 25.9827106 | I168: 12.81576505
B169: Depreciation | C169: $ | D169: Regulated Asset Base (Depreciation) | E169: Distribution | F169: Capacity | G169: 1616.426246 | H169: 1561.784102 | I169: 725.7463287
B170: Asset revaluations and other regulatory revenue | C170: $ | D170: Regulated Asset Base | E170: Distribution | F170: Capacity | G170: -1220.274022 | H170: -1211.619864 | I170: -602.0322654
B171: Tax | C171: $ | D171: Regulated Asset Base | E171: Distribution | F171: Capacity | G171: 544.9111879 | H171: 541.0466889 | I171: 268.8364342
B172: Return on capital | C172: $ | D172: Regulated Asset Base | E172: Distribution | F172: Capacity | G172: 3758.526003 | H172: 3731.870613 | I172: 1854.29984
B173: Local Authority rates | C173: $ | D173: Regulated Asset Base | E173: Passthrough | F173: Capacity | G173: 134.4507476 | H173: 133.4972256 | I173: 66.33238657
B174: Commerce Act levies | C174: $ | D174: Regulated Asset Base | E174: Passthrough | F174: Capacity | G174: 32.58976494 | H174: 32.35863899 | I174: 16.07842964
B175: Electricity Authority levies | C175: $ | D175: MWh | E175: Passthrough | F175: Capacity | G175: 18.09167852 | H175: 9.300328125 | I175: 5.28825046
B176: Electricity Authority levies | C176: $ | D176: ICP Count | E176: Passthrough | F176: Daily Fixed | G176: 0.1690656806 | H176: 0.1268357371 | I176: 0.0625607171
B177: Utilities Disputes levies | C177: $ | D177: ICP Count | E177: Passthrough | F177: Daily Fixed | G177: 0.1545099693 | H177: 0.1159158132 | I177: 0.05717455161
B178: Opex Incentive Amount | C178: $ | D178: Prior year distribution revenue | E178: Passthrough | F178: Daily Fixed | G178: 1236.66162 | H178: 725.4211421 | I178: 532.0022271
B179: Capex Incentive Amount | C179: $ | D179: Regulated Asset Base | E179: Passthrough | F179: Capacity | G179: 0 | H179: 0 | I179: 0
B180: Transpower - Connection charge | C180: $ | D180: MWh | E180: Passthrough | F180: Capacity | G180: 298.6107896 | H180: 184.8750794 | I180: 198.3246752
B181: Transpower - Benefit-based Charge | C181: $ | D181: MWh | E181: Passthrough | F181: Capacity | G181: 169.9496028 | H181: 59.99348874 | I181: 70.19997743
B182: Transpower - Residual Charge | C182: $ | D182: MWh | E182: Passthrough | F182: Capacity | G182: 1222.322791 | H182: 556.0445448 | I182: 321.0606414
B183: Transpower - Transitional Price Cap | C183: $ | D183: MWh | E183: Passthrough | F183: Capacity | G183: 0.7781109652 | H183: 0.3442903494 | I183: 0.2186671079
B184: Transpower - Interconnection costs | C184: $ | D184: MWh | E184: Passthrough | F184: Capacity | G184: 0 | H184: 0 | I184: 0
B185: Transpower - New investment contract | C185: $ | D185: MWh | E185: Passthrough | F185: Capacity | G185: 33.44130213 | H185: 20.70408573 | I185: 22.21030056
A186: Load group Streetlighting | B186: Distributed Generation Allowance | C186: $ | D186: MWh | E186: Passthrough | F186: Capacity | G186: 0 | H186: 0 | I186: 0
A187: Load group Streetlighting | B187: CPP recoverable costs | C187: $ | D187: ICP Count | E187: Passthrough | F187: Daily Fixed | G187: 0 | H187: 0 | I187: 0
A188: Load group Streetlighting | B188: Quality Incentive Adjustments | C188: $ | D188: ICP Count | E188: Passthrough | F188: Daily Fixed | G188: -1.092401475 | H188: -0.8195367971 | I188: -0.4042299975
A189: Load group Streetlighting | B189: Capex Wash-up Adjustment | C189: $ | D189: Regulated Asset Base | E189: Passthrough | F189: Capacity | G189: -62.75795356 | H189: -62.31287543 | I189: -30.96215462
A190: Load group Streetlighting | B190: Fire and Emergency Management New Zealand (FENZ) levies | C190: $ | D190: Regulated Asset Base | E190: Passthrough | F190: Capacity | G190: 5.806714764 | H190: 5.765533662 | I190: 2.864790679
B191: Total | G191: 8386.036567 | H191: 6844.445047 | I191: 3645.758488
E193: Distribution | G193: 5296.860224 | H193: 5179.030351 | I193: 2442.424791
E194: Passthrough | G194: 3089.176342 | H194: 1665.414697 | I194: 1203.333697
B196: Load group 4 | C196: Units | D196: Allocator | E196: Distribution / Passthrough
B198: Price category allocators
B200: ICP Count | C200: % | G200: 0.001327252617 | H200: 0.001931292289 | I200: 0.002391626453
B201: CPD | C201: % | G201: 0.08191480104 | H201: 0.08947330993 | I201: 0.1026938675
B202: Prior year distribution revenue | C202: % | G202: 0.05831291961 | H202: 0.08948185148 | I202: 0.06678667735
B203: MWh | C203: % | G203: 0.1212732833 | H203: 0.1344172087 | I203: 0.1821861301
B204: Regulated Asset Base | C204: % | G204: 0.1605177966 | H204: 0.2855440197 | I204: 0.2877940051
B205: Regulated Asset Base (Depreciation) | G205: 0.132858337 | H205: 0.2565644233 | I205: 0.2360080767
B207: Load group 4 Allocation
A209: Load group Streetlighting | B209: Service interruptions and emergencies | C209: $ | D209: CPD | E209: Distribution | F209: Capacity | G209: 77.78698642 | H209: 102.0267127 | I209: 42.07137001
A210: Load group Streetlighting | B210: Service interruptions and emergencies | C210: $ | D210: ICP Count | E210: Distribution | F210: Daily Fixed | G210: 1.989597688 | H210: 1.179649225 | I210: 0.9321277875
A211: Load group Streetlighting | B211: Vegetation management | C211: $ | D211: CPD | E211: Distribution | F211: Distance | G211: 144.949747 | H211: 165.5648497 | I211: 42.76298109
B212: Routine and corrective maintenance and inspection | C212: $ | D212: CPD | E212: Distribution | F212: Capacity | G212: 312.5351456 | H212: 409.9263257 | I212: 169.0357521
B213: System operations and network support | C213: $ | D213: ICP Count | E213: Distribution | F213: Daily Fixed | G213: 11.88362762 | H213: 7.045902894 | I213: 5.567487128
B214: Business support | C214: $ | D214: ICP Count | E214: Distribution | F214: Daily Fixed | G214: 12.61842633 | H214: 7.481571243 | I214: 5.911740798
B215: Depreciation | C215: $ | D215: Regulated Asset Base (Depreciation) | E215: Distribution | F215: Capacity | G215: 1649.436442 | H215: 2110.365905 | I215: 1092.351535
B216: Asset revaluations and other regulatory revenue | C216: $ | D216: Regulated Asset Base | E216: Distribution | F216: Capacity | G216: -1245.19411 | H216: -1637.205326 | I216: -906.1442587
B217: Tax | C217: $ | D217: Regulated Asset Base | E217: Distribution | F217: Capacity | G217: 556.0392086 | H217: 731.091118 | I217: 404.6371024
B218: Return on capital | C218: $ | D218: Regulated Asset Base | E218: Distribution | F218: Capacity | G218: 3835.281548 | H218: 5042.702441 | I218: 2790.985219
B219: Local Authority rates | C219: $ | D219: Regulated Asset Base | E219: Passthrough | F219: Capacity | G219: 137.1964624 | H219: 180.3885652 | I219: 99.8396842
B220: Commerce Act levies | C220: $ | D220: Regulated Asset Base | E220: Passthrough | F220: Capacity | G220: 33.25530381 | H220: 43.72471736 | I220: 24.20032538
B221: Electricity Authority levies | C221: $ | D221: MWh | E221: Passthrough | F221: Capacity | G221: 21.45383207 | H221: 9.616680426 | I221: 11.13121331
B222: Electricity Authority levies | C222: $ | D222: ICP Count | E222: Passthrough | F222: Daily Fixed | G222: 0.06159739953 | H222: 0.03652161694 | I222: 0.02885842102
B223: Utilities Disputes levies | C223: $ | D223: ICP Count | E223: Passthrough | F223: Daily Fixed | G223: 0.05629417088 | H223: 0.03337728801 | I223: 0.02637385501
B224: Opex Incentive Amount | C224: $ | D224: Prior year distribution revenue | E224: Passthrough | F224: Daily Fixed | G224: 895.094318 | H224: 799.5568003 | I224: 332.5722809
B225: Capex Incentive Amount | C225: $ | D225: Regulated Asset Base | E225: Passthrough | F225: Capacity | G225: 0 | H225: 0 | I225: 0
B226: Transpower - Connection charge | C226: $ | D226: MWh | E226: Passthrough | F226: Capacity | G226: 354.1045528 | H226: 191.1636378 | I226: 417.4526682
B227: Transpower - Benefit-based Charge | C227: $ | D227: MWh | E227: Passthrough | F227: Capacity | G227: 201.5329994 | H227: 62.03417783 | I227: 147.7635995
B228: Transpower - Residual Charge | C228: $ | D228: MWh | E228: Passthrough | F228: Capacity | G228: 1449.478988 | H228: 574.9584981 | I228: 675.7990211
B229: Transpower - Transitional Price Cap | C229: $ | D229: MWh | E229: Passthrough | F229: Capacity | G229: 0.9227149352 | H229: 0.3560014464 | I229: 0.4602713583
B230: Transpower - Interconnection costs | C230: $ | D230: MWh | E230: Passthrough | F230: Capacity | G230: 0 | H230: 0 | I230: 0
B231: Transpower - New investment contract | C231: $ | D231: MWh | E231: Passthrough | F231: Capacity | G231: 39.65602634 | H231: 21.40833886 | I231: 46.75035629
A232: Load group Streetlighting | B232: Distributed Generation Allowance | C232: $ | D232: MWh | E232: Passthrough | F232: Capacity | G232: 0 | H232: 0 | I232: 0
A233: Load group Streetlighting | B233: CPP recoverable costs | C233: $ | D233: ICP Count | E233: Passthrough | F233: Daily Fixed | G233: 0 | H233: 0 | I233: 0
... 75 more rows

Sheet Outputs >
B2: This sheet has been deliberately left blank.

Sheet Rev - Pricing Area & Cust Group
B2: Rev - Pricing Area & Cust Group
B3: Pricing Area Name | H3: Dunedin | I3: Central Otago | J3: Queenstown
H4: 1 | I4: 2 | J4: 3
B7: Description
B9: This sheet summarises the output of the model with target revenue split into pricing area, customer load group, and distribution/passthrough.
B12: Distribution | F12: Units | H12: Dunedin | I12: Central Otago | J12: Queenstown
D14: Load group Streetlighting | E14: 396.6097251 | F14: $000's | H14: 267.0055561 | I14: 91.64970828 | J14: 37.95446074
D15: Load group 1 (incl residential) | E15: 72445.09058 | F15: $000's | H15: 39920.62428 | I15: 21590.36788 | J15: 10934.09843
D16: Load group 2 | E16: 12980.38197 | F16: $000's | H16: 5513.87409 | I16: 4538.439176 | J16: 2928.068709
D17: Load group 3 | E17: 12918.31537 | F17: $000's | H17: 5296.860224 | I17: 5179.030351 | J17: 2442.424791
D18: Load group 4 | E18: 15945.61682 | F18: $000's | H18: 5357.326619 | I18: 6940.179149 | J18: 3648.111056
D19: Load group 5 | E19: 2485.860619 | F19: $000's | H19: 2153.4338 | I19: 77.75772168 | J19: 254.6690978
D20: Total | E20: 117171.8751 | H20: 58509.12457 | I20: 38417.42398 | J20: 20245.32654
B23: Passthrough | F23: Units | H23: Dunedin | I23: Central Otago | J23: Queenstown
D25: Load group Streetlighting | E25: 309.3636724 | F25: $000's | H25: 229.1293499 | I25: 45.67681287 | J25: 34.55750957
D26: Load group 1 (incl residential) | E26: 35320.19789 | F26: $000's | H26: 20022.59788 | I26: 9019.521275 | J26: 6278.07873
D27: Load group 2 | E27: 11107.46121 | F27: $000's | H27: 5217.939188 | I27: 3024.411373 | J27: 2865.110647
D28: Load group 3 | E28: 5957.924736 | F28: $000's | H28: 3089.176342 | I28: 1665.414697 | J28: 1203.333697
D29: Load group 4 | E29: 6594.480011 | F29: $000's | H29: 3074.300803 | I29: 1806.631554 | J29: 1713.547654
D30: Load group 5 | E30: 1696.659391 | F30: $000's | H30: 1250.877835 | I30: 199.5752761 | J30: 246.2062799
D31: Total | E31: 60986.08691 | H31: 32884.0214 | I31: 15761.23099 | J31: 12340.83452
B34: Total | F34: Units | H34: Dunedin | I34: Central Otago | J34: Queenstown
D36: Load group Streetlighting | E36: 705.9733975 | F36: $000's | H36: 496.134906 | I36: 137.3265212 | J36: 72.51197031
D37: Load group 1 (incl residential) | E37: 107765.2885 | F37: $000's | H37: 59943.22216 | I37: 30609.88915 | J37: 17212.17716
D38: Load group 2 | E38: 24087.84318 | F38: $000's | H38: 10731.81328 | I38: 7562.850549 | J38: 5793.179356
D39: Load group 3 | E39: 18876.2401 | F39: $000's | H39: 8386.036567 | I39: 6844.445047 | J39: 3645.758488
D40: Load group 4 | E40: 22540.09683 | F40: $000's | H40: 8431.627422 | I40: 8746.810702 | J40: 5361.65871
D41: Load group 5 | E41: 4182.520011 | F41: $000's | H41: 3404.311635 | I41: 277.3329978 | J41: 500.8753777
D42: Total | E42: 178157.962 | H42: 91393.14597 | I42: 54178.65497 | J42: 32586.16106
C45: Error check
C46: 0

Sheet Pricing Methodology Tables
B2: =MID(CELL("filename",A1),FIND("]",CELL("filename",A1))+1,255) -> Pricing Methodology Tables
B3: Description
B5: This sheet links the model information in a format to be included in our annual Pricing Methodology document.
C10: Table 2: Components of forecast allowable revenue ($m) | G10: Table 4: Pricing area allocation percentages | O10: Table 5: Total forecast allowable revenue by pricing area | W10: Table 8: Load group allocation percentages
D11: ='Name labels'!$E$10 -> RY26 | E11: ='Name labels'!$D$10 -> RY25 | G11: Cost Allocators | H11: Pricing Area | O11: Components ($m) | P11: Dunedin | Q11: Central | R11: Queenstown | S11: Total | X11: Load Group | AD11: Total
C12: ='Name labels'!C70 -> Capital related costs | H12: Dunedin | I12: Central | J12: Queenstown | K12: Total | O12: ='Name labels'!C70 -> Capital related costs | P12: =(SUMIF('Pricing Area Allocations'!$C$31:$J$58,$O12,'Pricing Area Allocations'!H$31:H$58))/1000 -> 32.01486332 | Q12: =(SUMIF('Pricing Area Allocations'!$C$31:$J$58,$O12,'Pricing Area Allocations'!I$31:I$58))/1000 -> 22.71217333 | R12: =(SUMIF('Pricing Area Allocations'!$C$31:$J$58,$O12,'Pricing Area Allocations'!J$31:J$58))/1000 -> 12.58371649 | S12: =SUM(P12:R12) -> 67.31075314 | W12: Cost Allocators | X12: SL | Y12: L1 | Z12: L2 | AA12: L3 | AB12: L4 | AC12: L5
C13: ='Name labels'!B25 -> Asset revaluations and other regulatory revenue | D13: =SUMIF('Target Revenue'!$B$17:$J$47,$C13,'Target Revenue'!$J$17:$J$47)/1000 -> -16.16727279 | E13: =SUMIF('Target Revenue'!$B$17:$J$47,$C13,'Target Revenue'!$I$17:$I$47)/1000 -> -14.96948938 | G13: ='Pricing Area Allocations'!B14 -> ICP Count | H13: ='Pricing Area Allocations'!H14 -> 0.5997123899 | I13: ='Pricing Area Allocations'!I14 -> 0.2443634367 | J13: ='Pricing Area Allocations'!J14 -> 0.1559241734 | K13: =SUM(H13:J13) -> 1 | M13: =IF(K13=1,0,1) -> 0 | O13: ='Name labels'!C71 -> Operational costs | P13: =(SUMIF('Pricing Area Allocations'!$C$31:$J$58,$O13,'Pricing Area Allocations'!H$31:H$58))/1000 -> 26.49426125 | Q13: =(SUMIF('Pricing Area Allocations'!$C$31:$J$58,$O13,'Pricing Area Allocations'!I$31:I$58))/1000 -> 15.70525065 | R13: =(SUMIF('Pricing Area Allocations'!$C$31:$J$58,$O13,'Pricing Area Allocations'!J$31:J$58))/1000 -> 7.661610057 | S13: =SUM(P13:R13) -> 49.86112195 | W13: Dunedin
C14: ='Name labels'!B24 -> Depreciation | D14: =SUMIF('Target Revenue'!$B$17:$J$47,$C14,'Target Revenue'!$J$17:$J$47)/1000 -> 24.55168449 | E14: =SUMIF('Target Revenue'!$B$17:$J$47,$C14,'Target Revenue'!$I$17:$I$47)/1000 -> 23.08618775 | G14: ='Pricing Area Allocations'!B15 -> Total Circuit Length | H14: ='Pricing Area Allocations'!H15 -> 0.3799057877 | I14: ='Pricing Area Allocations'!I15 -> 0.4561962746 | J14: ='Pricing Area Allocations'!J15 -> 0.1638979376 | K14: 1 | M14: 0 | O14: ='Name labels'!C72 -> Passthrough and recoverable costs | P14: =(SUMIF('Pricing Area Allocations'!$C$31:$J$58,$O14,'Pricing Area Allocations'!H$31:H$58))/1000 -> 32.8840214 | Q14: =(SUMIF('Pricing Area Allocations'!$C$31:$J$58,$O14,'Pricing Area Allocations'!I$31:I$58))/1000 -> 15.76123099 | R14: =(SUMIF('Pricing Area Allocations'!$C$31:$J$58,$O14,'Pricing Area Allocations'!J$31:J$58))/1000 -> 12.34083452 | S14: =SUM(P14:R14) -> 60.98608691 | W14: ='Load Group Allocations'!B16 -> ICP Count | X14: ='Allocator Data'!$I$26 -> 3.540501131e-05 | Y14: ='Allocator Data'!$I$27 -> 0.9386513379 | Z14: ='Allocator Data'!$I$28 -> 0.05623689434 | AA14: ='Allocator Data'!$I$29 -> 0.003642895133 | AB14: ='Allocator Data'!$I$30 -> 0.001327252617 | AC14: ='Allocator Data'!$I$31 -> 0.0001062150339 | AD14: =SUM(X14:AC14) -> 1 | AF14: =IF(AD14=1,0,1) -> 0
C15: ='Name labels'!B27 -> Return on capital | D15: =SUMIF('Target Revenue'!$B$17:$J$47,$C15,'Target Revenue'!$J$17:$J$47)/1000 -> 49.7962868 | E15: =SUMIF('Target Revenue'!$B$17:$J$47,$C15,'Target Revenue'!$I$17:$I$47)/1000 -> 30.07869343 | G15: ='Pricing Area Allocations'!B16 -> Overhead Circuit Length | H15: ='Pricing Area Allocations'!H16 -> 0.4383936112 | I15: ='Pricing Area Allocations'!I16 -> 0.4584413375 | J15: ='Pricing Area Allocations'!J16 -> 0.1031650513 | K15: 1 | M15: 0 | O15: Total forecast allowable revenue | P15: =SUM(P12:P14) -> 91.39314597 | Q15: =SUM(Q12:Q14) -> 54.17865497 | R15: =SUM(R12:R14) -> 32.58616106 | S15: =SUM(S12:S14) -> 178.157962 | W15: ='Load Group Allocations'!B17 -> CPD | X15: ='Allocator Data'!$I$66 -> 0.008292539651 | Y15: ='Allocator Data'!$I$67 -> 0.6597116159 | Z15: ='Allocator Data'!$I$68 -> 0.1367480365 | AA15: ='Allocator Data'!$I$69 -> 0.08027543894 | AB15: ='Allocator Data'!$I$70 -> 0.08191480104 | AC15: ='Allocator Data'!$I$71 -> 0.03305756804 | AD15: =SUM(X15:AC15) -> 1 | AF15: =IF(AD15=1,0,1) -> 0
C16: ='Name labels'!B26 -> Tax | D16: =SUMIF('Target Revenue'!$B$17:$J$47,$C16,'Target Revenue'!$J$17:$J$47)/1000 -> 7.219466827 | E16: =SUMIF('Target Revenue'!$B$17:$J$47,$C16,'Target Revenue'!$I$17:$I$47)/1000 -> 6.800985937 | G16: ='Pricing Area Allocations'!B22 -> Prior year distribution revenue | H16: ='Pricing Area Allocations'!H22 -> 0.5245143411 | I16: ='Pricing Area Allocations'!I22 -> 0.3053287591 | J16: ='Pricing Area Allocations'!J22 -> 0.1701568998 | K16: 1 | M16: =IF(K16=1,0,1) -> 0 | O16: % of forecast allowable revenue | P16: =P15/$S$15 -> 0.5129893997 | Q16: =Q15/$S$15 -> 0.3041045955 | R16: =R15/$S$15 -> 0.1829060048 | S16: =SUM(P16:R16) -> 1 | W16: ='Load Group Allocations'!B18 -> Prior year distribution revenue | X16: ='Allocator Data'!$I$122 -> 0.008575461056 | Y16: ='Allocator Data'!$I$123 -> 0.6793402754 | Z16: ='Allocator Data'!$I$124 -> 0.1578550106 | AA16: ='Allocator Data'!$I$125 -> 0.08056508479 | AB16: ='Allocator Data'!$I$126 -> 0.05831291961 | AC16: ='Allocator Data'!$I$127 -> 0.01535124849 | AD16: 1 | AF16: 0
C17: ='Name labels'!C71 -> Operational costs | G17: ='Name labels'!B43 -> Transmission Costs | H17: =SUM('Pricing Area Allocations'!H48:H54)/SUM('Pricing Area Allocations'!$E48:$E54) -> 0.5574068032 | I17: =SUM('Pricing Area Allocations'!I48:I54)/SUM('Pricing Area Allocations'!$E48:$E54) -> 0.2089392193 | J17: =SUM('Pricing Area Allocations'!J48:J54)/SUM('Pricing Area Allocations'!$E48:$E54) -> 0.2336539774 | K17: 1 | M17: 0 | W17: ='Load Group Allocations'!B19 -> MWh | X17: ='Allocator Data'!$I$146 -> 0.005459100435 | Y17: ='Allocator Data'!$I$147 -> 0.5537407779 | Z17: ='Allocator Data'!$I$148 -> 0.1603564131 | AA17: ='Allocator Data'!$I$149 -> 0.1022678489 | AB17: ='Allocator Data'!$I$150 -> 0.1212732833 | AC17: ='Allocator Data'!$I$151 -> 0.05690257639 | AD17: 1 | AF17: 0
C18: ='Name labels'!B23 -> Business support | D18: =SUMIF('Target Revenue'!$B$17:$J$47,$C18,'Target Revenue'!$J$17:$J$47)/1000 -> 15.40291722 | E18: =SUMIF('Target Revenue'!$B$17:$J$47,$C18,'Target Revenue'!$I$17:$I$47)/1000 -> 15.27033301 | G18: ='Pricing Area Allocations'!B23 -> MWh | H18: ='Pricing Area Allocations'!H23 -> 0.5714970376 | I18: ='Pricing Area Allocations'!I23 -> 0.2311237386 | J18: ='Pricing Area Allocations'!J23 -> 0.1973792238 | K18: 1 | M18: 0 | W18: ='Load Group Allocations'!B20 -> Regulated Asset Base | X18: ='RAB Allocations'!$I$27 -> 0.006361957566 | Y18: ='RAB Allocations'!$I$28 -> 0.5061244784 | Z18: ='RAB Allocations'!$I$29 -> 0.1049117932 | AA18: ='RAB Allocations'!$I$30 -> 0.1573053516 | AB18: ='RAB Allocations'!$I$31 -> 0.1605177966 | AC18: ='RAB Allocations'!$I$32 -> 0.06477862262 | AD18: 1 | AF18: 0
C19: ='Name labels'!B21 -> Routine and corrective maintenance and inspection | D19: =SUMIF('Target Revenue'!$B$17:$J$47,$C19,'Target Revenue'!$J$17:$J$47)/1000 -> 9.757868652 | E19: =SUMIF('Target Revenue'!$B$17:$J$47,$C19,'Target Revenue'!$I$17:$I$47)/1000 -> 9.569861808 | G19: ='Pricing Area Allocations'!B24 -> Regulated Asset Base | H19: ='Pricing Area Allocations'!H24 -> 0.4661991722 | I19: ='Pricing Area Allocations'!I24 -> 0.34457813 | J19: ='Pricing Area Allocations'!J24 -> 0.1892226978 | K19: 1 | M19: 0 | W19: ='Load Group Allocations'!B21 -> Regulated Asset Base (Depreciation) | X19: ='RAB - Depreciation Allocations'!$I$27 -> 0.007041306449 | Y19: ='RAB - Depreciation Allocations'!$I$28 -> 0.5601699661 | Z19: ='RAB - Depreciation Allocations'!$I$29 -> 0.1161145887 | AA19: ='RAB - Depreciation Allocations'!$I$30 -> 0.1301994411 | AB19: ='RAB - Depreciation Allocations'!$I$31 -> 0.132858337 | AC19: ='RAB - Depreciation Allocations'!$I$32 -> 0.05361636064 | AD19: =SUM(X19:AC19) -> 1 | AF19: 0
C20: ='Name labels'!B19 -> Service interruptions and emergencies | D20: =SUMIF('Target Revenue'!$B$17:$J$47,$C20,'Target Revenue'!$J$17:$J$47)/1000 -> 4.857278977 | E20: =SUMIF('Target Revenue'!$B$17:$J$47,$C20,'Target Revenue'!$I$17:$I$47)/1000 -> 4.85711973 | G20: ='Pricing Area Allocations'!B25 -> Regulated Asset Base (Depreciation) | H20: ='Pricing Area Allocations'!H25 -> 0.4913148324 | I20: ='Pricing Area Allocations'!I25 -> 0.3255175658 | J20: ='Pricing Area Allocations'!J25 -> 0.1831676018 | K20: 1 | M20: 0 | W20: Central Otago & Wanaka
C21: ='Name labels'!B22 -> System operations and network support | D21: =SUMIF('Target Revenue'!$B$17:$J$47,$C21,'Target Revenue'!$J$17:$J$47)/1000 -> 14.50597147 | E21: =SUMIF('Target Revenue'!$B$17:$J$47,$C21,'Target Revenue'!$I$17:$I$47)/1000 -> 15.09042708 | W21: =W14 -> ICP Count | X21: ='Allocator Data'!$J$26 -> 0.0003041162166 | Y21: ='Allocator Data'!$J$27 -> 0.8960861477 | Z21: ='Allocator Data'!$J$28 -> 0.09492533068 | AA21: ='Allocator Data'!$J$29 -> 0.006707175137 | AB21: ='Allocator Data'!$J$30 -> 0.001931292289 | AC21: ='Allocator Data'!$J$31 -> 4.593792967e-05 | AD21: =SUM(X21:AC21) -> 1
C22: ='Name labels'!B20 -> Vegetation management | D22: =SUMIF('Target Revenue'!$B$17:$J$47,$C22,'Target Revenue'!$J$17:$J$47)/1000 -> 3.921798362 | E22: =SUMIF('Target Revenue'!$B$17:$J$47,$C22,'Target Revenue'!$I$17:$I$47)/1000 -> 3.937880631 | W22: =W15 -> CPD | X22: ='Allocator Data'!$J$66 -> 0.004141586771 | Y22: ='Allocator Data'!$J$67 -> 0.6642477941 | Z22: ='Allocator Data'!$J$68 -> 0.1749223501 | AA22: ='Allocator Data'!$J$69 -> 0.06621505431 | AB22: ='Allocator Data'!$J$70 -> 0.08947330993 | AC22: ='Allocator Data'!$J$71 -> 0.0009999047525 | AD22: =SUM(X22:AC22) -> 1
C23: ='Name labels'!C72 -> Passthrough and recoverable costs | W23: Prior year distribution revenue | X23: ='Allocator Data'!$J$122 -> 0.002933320497 | Y23: ='Allocator Data'!$J$123 -> 0.6701209169 | Z23: ='Allocator Data'!$J$124 -> 0.1515410142 | AA23: ='Allocator Data'!$J$125 -> 0.0811850101 | AB23: ='Allocator Data'!$J$126 -> 0.08948185148 | AC23: ='Allocator Data'!$J$127 -> 0.004737886902 | AD23: 1
C24: ='Name labels'!B33 -> Capex Incentive Amount | D24: =SUMIF('Target Revenue'!$B$17:$J$47,$C24,'Target Revenue'!$J$17:$J$47)/1000 -> 0 | E24: =SUMIF('Target Revenue'!$B$17:$J$47,$C24,'Target Revenue'!$I$17:$I$47)/1000 -> -1.58140721 | W24: MWh | X24: ='Allocator Data'!$J$146 -> 0.002849693569 | Y24: ='Allocator Data'!$J$147 -> 0.4543058141 | Z24: ='Allocator Data'!$J$148 -> 0.2540996606 | AA24: ='Allocator Data'!$J$149 -> 0.1299953925 | AB24: ='Allocator Data'!$J$150 -> 0.1344172087 | AC24: ='Allocator Data'!$J$151 -> 0.02433223049 | AD24: 1
C25: ='Name labels'!B40 -> Capex Wash-up Adjustment | D25: =SUMIF('Target Revenue'!$B$17:$J$47,$C25,'Target Revenue'!$J$17:$J$47)/1000 -> -0.8557635366 | E25: =SUMIF('Target Revenue'!$B$17:$J$47,$C25,'Target Revenue'!$I$17:$I$47)/1000 -> -0.831484198 | W25: Regulated Asset Base | X25: ='RAB Allocations'!$J$27 -> 0.002455288778 | Y25: ='RAB Allocations'!$J$28 -> 0.3937911349 | Z25: ='RAB Allocations'!$J$29 -> 0.1037005638 | AA25: ='RAB Allocations'!$J$30 -> 0.2113179091 | AB25: ='RAB Allocations'!$J$31 -> 0.2855440197 | AC25: ='RAB Allocations'!$J$32 -> 0.003191083717 | AD25: 1
C26: ='Name labels'!B29 -> Commerce Act levies | D26: =SUMIF('Target Revenue'!$B$17:$J$47,$C26,'Target Revenue'!$J$17:$J$47)/1000 -> 0.444392 | E26: =SUMIF('Target Revenue'!$B$17:$J$47,$C26,'Target Revenue'!$I$17:$I$47)/1000 -> 0.45029 | W26: Regulated Asset Base (Depreciation) | X26: ='RAB - Depreciation Allocations'!$J$27 -> 0.002704526593 | Y26: ='RAB - Depreciation Allocations'!$J$28 -> 0.4337651058 | Z26: ='RAB - Depreciation Allocations'!$J$29 -> 0.1142272693 | AA26: ='RAB - Depreciation Allocations'!$J$30 -> 0.1898714514 | AB26: ='RAB - Depreciation Allocations'!$J$31 -> 0.2565644233 | AC26: ='RAB - Depreciation Allocations'!$J$32 -> 0.002867223604 | AD26: =SUM(X26:AC26) -> 1
C27: ='Name labels'!B30 -> Electricity Authority levies | D27: =SUMIF('Target Revenue'!$B$17:$J$47,$C27,'Target Revenue'!$J$17:$J$47)/1000 -> 0.386933 | E27: =SUMIF('Target Revenue'!$B$17:$J$47,$C27,'Target Revenue'!$I$17:$I$47)/1000 -> 0.295138 | W27: Queenstown
C28: ='Name labels'!B41 -> Fire and Emergency Management New Zealand (FENZ) levies | D28: =SUMIF('Target Revenue'!$B$17:$J$47,$C28,'Target Revenue'!$J$17:$J$47)/1000 -> 0.07918 | E28: =SUMIF('Target Revenue'!$B$17:$J$47,$C28,'Target Revenue'!$I$17:$I$47)/1000 -> 0.048644 | W28: =W21 -> ICP Count | X28: ='Allocator Data'!$K$26 -> 0.0002042610535 | Y28: ='Allocator Data'!$K$27 -> 0.861610618 | Z28: ='Allocator Data'!$K$28 -> 0.1304722609 | AA28: ='Allocator Data'!$K$29 -> 0.005184686502 | AB28: ='Allocator Data'!$K$30 -> 0.002391626453 | AC28: ='Allocator Data'!$K$31 -> 0.0001365471152 | AD28: =SUM(X28:AC28) -> 1
C29: ='Name labels'!B28 -> Local Authority rates | D29: =SUMIF('Target Revenue'!$B$17:$J$47,$C29,'Target Revenue'!$J$17:$J$47)/1000 -> 1.833362 | E29: =SUMIF('Target Revenue'!$B$17:$J$47,$C29,'Target Revenue'!$I$17:$I$47)/1000 -> 1.641464 | W29: =W22 -> CPD | X29: ='Allocator Data'!$K$66 -> 0.003465310657 | Y29: ='Allocator Data'!$K$67 -> 0.6070152871 | Z29: ='Allocator Data'!$K$68 -> 0.2114234998 | AA29: ='Allocator Data'!$K$69 -> 0.06822867451 | AB29: ='Allocator Data'!$K$70 -> 0.1026938675 | AC29: ='Allocator Data'!$K$71 -> 0.007173360466 | AD29: =SUM(X29:AC29) -> 1
C30: ='Name labels'!B32 -> Opex Incentive Amount | D30: =SUMIF('Target Revenue'!$B$17:$J$47,$C30,'Target Revenue'!$J$17:$J$47)/1000 -> 29.26487322 | E30: =SUMIF('Target Revenue'!$B$17:$J$47,$C30,'Target Revenue'!$I$17:$I$47)/1000 -> 28.43458338 | W30: Prior year distribution revenue | X30: ='Allocator Data'!$K$122 -> 0.003104659856 | Y30: ='Allocator Data'!$K$123 -> 0.6147422224 | Z30: ='Allocator Data'!$K$124 -> 0.2061604125 | AA30: ='Allocator Data'!$K$125 -> 0.1068359065 | AB30: ='Allocator Data'!$K$126 -> 0.06678667735 | AC30: ='Allocator Data'!$K$127 -> 0.002370121421 | AD30: 1
C31: ='Name labels'!B39 -> Quality Incentive Adjustments | D31: =SUMIF('Target Revenue'!$B$17:$J$47,$C31,'Target Revenue'!$J$17:$J$47)/1000 -> -0.500026 | E31: =SUMIF('Target Revenue'!$B$17:$J$47,$C31,'Target Revenue'!$I$17:$I$47)/1000 -> -0.581664 | W31: MWh | X31: ='Allocator Data'!$K$146 -> 0.002595165531 | Y31: ='Allocator Data'!$K$147 -> 0.4429442599 | Z31: ='Allocator Data'!$K$148 -> 0.253654149 | AA31: ='Allocator Data'!$K$149 -> 0.08655353731 | AB31: ='Allocator Data'!$K$150 -> 0.1821861301 | AC31: ='Allocator Data'!$K$151 -> 0.03206675807 | AD31: 1
C32: ='Name labels'!B43 -> Transmission Costs | D32: =(SUMIF('Target Revenue'!$B$17:$J$47,$C32,'Target Revenue'!$J$17:$J$47)/1000)-D34 -> 30.26241222 | E32: =(SUMIF('Target Revenue'!$B$17:$J$47,$C32,'Target Revenue'!$I$17:$I$47)/1000)-E34 -> 26.19797369 | W32: Regulated Asset Base | X32: ='RAB Allocations'!$K$27 -> 0.002111876328 | Y32: ='RAB Allocations'!$K$28 -> 0.3699354379 | Z32: ='RAB Allocations'!$K$29 -> 0.1288485589 | AA32: ='RAB Allocations'!$K$30 -> 0.1912071673 | AB32: ='RAB Allocations'!$K$31 -> 0.2877940051 | AC32: ='RAB Allocations'!$K$32 -> 0.02010295443 | AD32: 1
C33: CPP recoverable costs | D33: ='Target Revenue'!J41/1000 -> 0 | E33: 0 | W33: =W26 -> Regulated Asset Base (Depreciation) | X33: ='RAB - Depreciation Allocations'!$K$27 -> 0.002490530035 | Y33: ='RAB - Depreciation Allocations'!$K$28 -> 0.4362638602 | Z33: ='RAB - Depreciation Allocations'!$K$29 -> 0.1519507566 | AA33: ='RAB - Depreciation Allocations'!$K$30 -> 0.1568011668 | AB33: ='RAB - Depreciation Allocations'!$K$31 -> 0.2360080767 | AC33: ='RAB - Depreciation Allocations'!$K$32 -> 0.0164856096 | AD33: =SUM(X33:AC33) -> 1
C34: Avoided Cost Of Transmission (ACOT) | D34: ='Target Revenue'!J40/1000 -> 0 | E34: ='Target Revenue'!I40/1000 -> 0
C35: ='Name labels'!B31 -> Utilities Disputes levies | D35: =SUMIF('Target Revenue'!$B$17:$J$47,$C35,'Target Revenue'!$J$17:$J$47)/1000 -> 0.070724 | E35: =SUMIF('Target Revenue'!$B$17:$J$47,$C35,'Target Revenue'!$I$17:$I$47)/1000 -> 0.067267
C36: Opening Wash-up Account Balance | D36: ='Target Revenue'!J45/1000 -> 28.07541285 | E36: ='Target Revenue'!I45/1000 -> 25.47925428
C37: Target Revenue (before revenue limit applied) | D37: =SUM(D13:D36) -> 202.9074998 | E37: =SUM(E13:E36) -> 173.3420589
C38: Revenue deferred to future periods | D38: =D39-D37 -> -24.74953775 | E38: =E39-E37 -> -15.24025195
C39: Target Revenue | D39: ='Target Revenue'!J47/1000 -> 178.157962 | E39: ='Target Revenue'!I47/1000 -> 158.101807
D41: =IF((D37*1000)=('Target Revenue'!J46),0,1) -> 0
D42: =IF((D39*1000)='Target Revenue'!J47,0,1) -> 0
C46: Error check
C47: =IF(SUM(D41:D42,M13:M20,S18:S19,AF14:AF19,U15)>0.0001,1,0) -> 0
